Workbook

Sheet Main Tool
B2: Impacts of Heavy Trucks on Pavements
C4: Minnesota State University, Mankato
C5: for the Minnesota Local Road Research Board
C7: Version | D7: 1.04
C8: Date | D8: 2014-12-08
B13: Last Database Imported
C14: Filename
C15: ESAL Calculation Trial.xls
C17: Date
C18: 2014-12-06

Sheet OriginalData (hidden)
A1: =COUNTA(A3:A100000) -> 13 | B1: Original Data | U1: Custom Data | AJ1: After Street is Selected | AU1: After Segment is Selected | BA1: More original Data | BH1: More Custom Data
A2: Segment ID | B2: Name | C2: From | D2: To | E2: From-To Concatenation | F2: ADT | G2: HCADT | H2: Surface Type | I2: Surface Thickness, in | J2: Base Type | K2: Base Thickness, in | L2: Subbase Type | M2: Subbase Thickness | N2: Subgrade R Value | O2: Recent PCI | P2: Recent SR | Q2: Year of Last Reconstruction | R2: Percent Trucks | S2: Segment Width | T2: Segment Length | U2: Custom ADT | V2: Custom HCADT | W2: Custom Surface Type | X2: Custom Surface Thickness | Y2: Custom Base Type | Z2: Custom Base Thickness | AA2: Custom Subbase Type | AB2: Custom Subbase Thickness | AC2: Custom R-Value | AD2: Custom PCI | AE2: Custom SR | AF2: Year of Last Reconstruction | AG2: Custom Percent Trucks | AH2: Original Design ESALs | AI2: Segment ID | AJ2: Name | AK2: From | AL2: To | AM2: From-To Concatenation | AT2: Segment ID | AU2: Name | AV2: From | AW2: To | AX2: From-To Concatenation | BH2: 1st PCI | BI2: 1st PCI Date | BJ2: 2nd PCI | BK2: 2nd PCI Date | BL2: 3rd PCI | BM2: 3rd PCI Date | BQ2: Unique Segment ID from Importing Database
A3: 1 | B3: 3 ST | C3: 45TH AVE | D3: 46TH AVE | E3: 45TH AVE to 46TH AVE | F3: 600 | G3: 44.82 | H3: Asphalt | I3: 3.5 | J3: Mn/DOT Class 5 | K3: 6 | L3: Select Granular Borrow | M3: 2 | N3: 70 | Q3: 2008 | R3: 7.47 | S3: 30 | T3: 660 | AI3: 1 | AJ3: 3 ST | AK3: 45TH AVE | AL3: 46TH AVE | AM3: 45TH AVE to 46TH AVE | AT3: 3 | AU3: 3 ST | AV3: 60TH AVE | AW3: 61ST AVE | AX3: 60TH AVE to 61ST AVE | BA3: 95 | BB3: 2008-10-01 | BC3: 95 | BD3: 2011-10-01 | BE3: 89.1 | BF3: 2014-10-07
A4: 2 | B4: 3 ST | C4: SATELLITE LN | D4: MISSISSIPPI ST | E4: SATELLITE LN to MISSISSIPPI ST | F4: 2000 | G4: 71.2 | H4: Asphalt | I4: 3.5 | J4: Mn/DOT Class 5 | K4: 6 | L4: Select Granular Borrow | M4: 2 | N4: 70 | Q4: 1996 | R4: 3.56 | S4: 32 | T4: 655 | AI4: 2 | AJ4: 3 ST | AK4: SATELLITE LN | AL4: MISSISSIPPI ST | AM4: SATELLITE LN to MISSISSIPPI ST | BA4: 94.5 | BB4: 2014-10-07
A5: 3 | B5: 3 ST | C5: 60TH AVE | D5: 61ST AVE | E5: 60TH AVE to 61ST AVE | F5: 800 | G5: 42.32 | H5: Asphalt | I5: 1.5 | J5: Mn/DOT Class 7 | K5: 4 | L5: Select Granular Borrow | M5: 2 | N5: 70 | Q5: 2011 | R5: 5.29 | S5: 35 | T5: 660 | AI5: 3 | AJ5: 3 ST | AK5: 60TH AVE | AL5: 61ST AVE | AM5: 60TH AVE to 61ST AVE | BA5: 95 | BB5: 2011-10-01 | BC5: 85.05 | BD5: 2014-10-07
A6: 4 | B6: 3 ST | C6: 46TH AVE | D6: 49TH AVE | E6: 46TH AVE to 49TH AVE | F6: 600 | G6: 44.82 | H6: Asphalt | I6: 3 | J6: Mn/DOT Class 6 | K6: 4 | L6: Select Granular Borrow | M6: 2 | N6: 70 | Q6: 1966 | R6: 7.47 | S6: 35 | T6: 1975 | AI6: 4 | AJ6: 3 ST | AK6: 46TH AVE | AL6: 49TH AVE | AM6: 46TH AVE to 49TH AVE | BA6: 70 | BB6: 2008-10-01 | BC6: 53 | BD6: 2011-10-01 | BE6: 52.65 | BF6: 2014-10-07
A7: 5 | B7: 3 ST | C7: 49TH AVE | D7: HORIZON DR | E7: 49TH AVE to HORIZON DR | F7: 800 | G7: 42.32 | H7: Asphalt | I7: 3 | J7: Mn/DOT Class 6 | K7: 6 | L7: Select Granular Borrow | M7: 2 | N7: 70 | Q7: 1969 | R7: 5.29 | S7: 40 | T7: 1320 | AI7: 5 | AJ7: 3 ST | AK7: 49TH AVE | AL7: HORIZON DR | AM7: 49TH AVE to HORIZON DR | BA7: 70 | BB7: 2008-10-01 | BC7: 53 | BD7: 2011-10-01 | BE7: 54 | BF7: 2014-10-07
A8: 6 | B8: 3 ST | C8: HORIZON DR | D8: 53RD AVE | E8: HORIZON DR to 53RD AVE | F8: 800 | G8: 42.32 | H8: Asphalt | I8: 3 | J8: Mn/DOT Class 6 | K8: 6 | L8: Select Granular Borrow | M8: 2 | N8: 70 | Q8: 1969 | R8: 5.29 | S8: 40 | T8: 1320 | AI8: 6 | AJ8: 3 ST | AK8: HORIZON DR | AL8: 53RD AVE | AM8: HORIZON DR to 53RD AVE | BA8: 70 | BB8: 2008-10-01 | BC8: 51 | BD8: 2011-10-01 | BE8: 40.5 | BF8: 2014-10-07
A9: 7 | B9: 3 ST | C9: 58TH AVE | D9: 59TH AVE | E9: 58TH AVE to 59TH AVE | F9: 800 | G9: 42.32 | H9: Asphalt | I9: 3 | J9: Mn/DOT Class 5 | K9: 2 | L9: Select Granular Borrow | M9: 2 | N9: 70 | Q9: 1978 | R9: 5.29 | S9: 35 | T9: 660 | AI9: 7 | AJ9: 3 ST | AK9: 58TH AVE | AL9: 59TH AVE | AM9: 58TH AVE to 59TH AVE | BA9: 95 | BB9: 2008-10-01 | BC9: 89 | BD9: 2011-10-01 | BE9: 79.65 | BF9: 2014-10-07
A10: 8 | B10: 3 ST | C10: 470' N 59TH AVE | D10: 60TH AVE | E10: 470' N 59TH AVE to 60TH AVE | F10: 800 | G10: 42.32 | H10: Asphalt | I10: 3 | J10: Mn/DOT Class 5 | K10: 2 | L10: Select Granular Borrow | M10: 2 | N10: 70 | Q10: 1978 | R10: 5.29 | S10: 35 | T10: 190 | AI10: 8 | AJ10: 3 ST | AK10: 470' N 59TH AVE | AL10: 60TH AVE | AM10: 470' N 59TH AVE to 60TH AVE | BA10: 78 | BB10: 2011-10-01 | BC10: 70.2 | BD10: 2014-10-07
A11: 9 | B11: 3 ST | C11: 57TH AVE | D11: 57TH PLACE | E11: 57TH AVE to 57TH PLACE | F11: 1200 | G11: 63.48 | H11: Asphalt | I11: 3 | J11: Mn/DOT Class 6 | K11: 4 | L11: Select Granular Borrow | M11: 2 | N11: 70 | Q11: 1966 | R11: 5.29 | S11: 39 | T11: 211 | AI11: 9 | AJ11: 3 ST | AK11: 57TH AVE | AL11: 57TH PLACE | AM11: 57TH AVE to 57TH PLACE | BA11: 95 | BB11: 2008-10-01 | BC11: 95 | BD11: 2011-10-01 | BE11: 81 | BF11: 2014-10-07
A12: 10 | B12: 3 ST | C12: 57TH PLACE | D12: 58TH AVE | E12: 57TH PLACE to 58TH AVE | F12: 800 | G12: 42.32 | H12: Asphalt | I12: 3.5 | J12: Mn/DOT Class 5 | K12: 6 | L12: Select Granular Borrow | M12: 2 | N12: 70 | Q12: 2006 | R12: 5.29 | S12: 40 | T12: 502 | AI12: 10 | AJ12: 3 ST | AK12: 57TH PLACE | AL12: 58TH AVE | AM12: 57TH PLACE to 58TH AVE | BA12: 95 | BB12: 2008-10-01 | BC12: 95 | BD12: 2011-10-01 | BE12: 78.3 | BF12: 2014-10-07
A13: 11 | B13: 3 ST | C13: 59TH AVE | D13: 470' N 59TH AVE | E13: 59TH AVE to 470' N 59TH AVE | F13: 800 | G13: 42.32 | H13: Asphalt | I13: 3.5 | J13: Mn/DOT Class 5 | K13: 6 | L13: Select Granular Borrow | M13: 2 | N13: 70 | Q13: 2006 | R13: 5.29 | S13: 35 | T13: 470 | AI13: 11 | AJ13: 3 ST | AK13: 59TH AVE | AL13: 470' N 59TH AVE | AM13: 59TH AVE to 470' N 59TH AVE | BA13: 95 | BB13: 2008-10-01 | BC13: 85 | BD13: 2011-10-01 | BE13: 91.8 | BF13: 2014-10-07
A14: 12 | B14: 3a ST | C14: 59TH AVE | D14: 470' N 59TH AVE | E14: 59TH AVE to 470' N 59TH AVE | F14: 800 | G14: 42.32 | H14: Asphalt | I14: 3.5 | J14: Mn/DOT Class 5 | K14: 6 | L14: Select Granular Borrow | M14: 2 | N14: 30 | Q14: 2006 | R14: 5.29 | S14: 35 | T14: 470 | BA14: 95 | BB14: 2008-10-01 | BC14: 85 | BD14: 2011-10-01 | BE14: 91.8 | BF14: 2014-10-07
A15: 13 | B15: 3b ST | C15: 59TH AVE | D15: 470' N 59TH AVE | E15: 59TH AVE to 470' N 59TH AVE | F15: 800 | G15: 42.32 | H15: Asphalt | I15: 3.5 | J15: Mn/DOT Class 5 | K15: 6 | L15: Select Granular Borrow | M15: 2 | N15: 10 | Q15: 2006 | R15: 5.29 | S15: 35 | T15: 470 | BA15: 95 | BB15: 2008-10-01 | BC15: 85 | BD15: 2011-10-01 | BE15: 91.8 | BF15: 2014-10-07

Sheet DataSorting (hidden)
A1: New Sorted Unique List | C1: #listed, colA | D1: =COUNTA(A1:A100000) -> 4 | J1: Criteria range for street selection | AA1: After Street is Selected | BA1: After Segment is Selected
A2: 3 ST | AA2: New Sorted Unique List | AD2: ADT | AG2: Base Type | AH2: Base Thickness, in | AI2: Subgrade R Value | AJ2: Recent PCI | AK2: Recent SR | AL2: Recent Other CI | BA2: New Sorted Unique List | BD2: ADT | BG2: Base Type | BH2: Base Thickness, in | BI2: Subgrade R Value | BJ2: Recent PCI | BK2: Recent SR | BL2: Recent Other CI
A3: 3a ST | J3: Name
A4: 3b ST | J4: =3 ST
J19: Criteria Range for segment selection
J21: Name | K21: From | L21: To
J22: =3 ST | K22: =60TH AVE | L22: =61ST AVE

Sheet Report-Segment
O1: PSI | Q1: PSI
N2: Most Recent Segment Analysis | U2: Predicted PCI Since Last Reconstruction
C3: Heavy Vehicle Impacts Tool | M3: Year | N3: ESALs without Additional Heavy Vehicles | O3: PCI Without Additional Heavy Vehicles | P3: ESALs With Additional Heavy Vehicles | Q3: PCI With Additional Heavy Vehicles | U3: Year | V3: ESALs | W3: Without Additional Heavy Vehicles | X3: With Additional Heavy Vehicles | PA3: PCI-Date Regression
C4: Individual Segment Analysis Report | M4: 0 | N4: 0 | O4: 97.99987793 | P4: 0 | Q4: 97.99987793 | W4: 100 | X4: 100
M5: 1 | N5: 9002.067383 | O5: 97.99117279 | P5: 9310.474609 | Q5: 97.99008179 | W5: 100 | X5: 99
M6: 2 | N6: 18094.15625 | O6: 97.8735199 | P6: 18714.05469 | Q6: 97.85469055 | W6: 99 | X6: 97 | PB6: PCI | PC6: PCI-date | PD6: PCI-Date-Serial Number | PG6: Age | PH6: Modeled PCI | PJ6: (act-model)^2
C7: Analysis Name | D7: NewAnalysis2 | G7: Heavy Vehicles Included in this Analysis | M7: 3 | N7: 27277.16602 | O7: 97.32966614 | P7: 28211.66992 | Q7: 97.23203278 | W7: 98 | X7: 94 | PB7: 95 | PC7: 2008-10-01 | PD7: =PC7 -> 2008-10-01 | PG7: =(PD7-$PD$11)/365.25 -> 2.171115674 | PH7: =IF(PG7<>"",$PC$15+$PC$16*EXP(-(($PC$17/PG7)^$PC$18)),NA()) -> 95.00289994 | PJ7: =(PB7-PH7)^2 -> 8.409668957e-06
C8: Segment Name | D8: 3 ST | J8: Vehicles per Week | M8: 4 | N8: 36552.00391 | O8: 95.92556 | P8: 37804.26172 | Q8: 95.64568329 | W8: 96 | X8: 92 | PB8: 95 | PC8: 2011-10-01 | PD8: =PC8 -> 2011-10-01 | PG8: =(PD8-$PD$11)/365.25 -> 5.169062286 | PH8: =IF(PG8<>"",$PC$15+$PC$16*EXP(-(($PC$17/PG8)^$PC$18)),NA()) -> 94.99709538 | PJ8: =(PB8-PH8)^2 -> 8.436819715e-06
C9: From / To | D9: 60TH AVE to 61ST AVE | H9: Vehicle | K9: Full / Empty | M9: 5 | N9: 45919.58984 | O9: 93.33834076 | P9: 47492.77734 | Q9: 92.7654953 | W9: 94 | X9: 86 | PB9: 78 | PC9: 2014-10-07 | PD9: =PC9 -> 2014-10-07 | PG9: 8.186173854 | PH9: =IF(PG9<>"",$PC$15+$PC$16*EXP(-(($PC$17/PG9)^$PC$18)),NA()) -> 77.9995486 | PJ9: =(PB9-PH9)^2 -> 2.037623574e-07
C10: Segment Length, ft | D10: 660 | H10: W5 - Waste - Side Load | J10: 4 | K10: 1/2 Full | M10: 6 | N10: 55380.85156 | O10: 89.46082306 | P10: 57278.17969 | Q10: 88.50856018 | W10: 92 | X10: 82
C11: Segment Length, mi | D11: 0.13 | M11: 7 | N11: 64936.72656 | O11: 84.3713913 | P11: 67161.4375 | Q11: 82.99019623 | W11: 90 | X11: 76 | PB11: Last Recon | PC11: 2006 | PD11: =TEXT("7/31/"&PC11,"0") -> 38929 | PE11: (31 July of reconstruct year) | PI11: sum | PJ11: =SUM(PJ7:PJ9) -> 1.705025103e-05
M12: 8 | N12: 74588.16406 | O12: 78.25740051 | P12: 77143.52344 | Q12: 76.43289185 | W12: 88 | X12: 70
C13: Percent Life Consumed | D13: 17 | M13: 9 | N13: 84336.10938 | O13: 71.34758759 | P13: 87225.4375 | Q13: 69.09220886 | W13: 86 | X13: 63
C14: Total Segment Consumed Life Cost | D14: 6190 | M14: 10 | N14: 94181.53906 | O14: 63.86845016 | P14: 97408.16406 | Q14: 61.21238708 | W14: 83 | PB14: Regression Factors
M15: 11 | N15: 104125.4219 | O15: 56.02185059 | P15: 107692.7188 | Q15: 53.00526428 | W15: 80 | PB15: a | PC15: 95.00289994
C16: Additional Asphalt Thickness | D16: 0.0 in. | M16: 12 | N16: 114168.7422 | O16: 47.97647095 | P16: 118080.1172 | Q16: 44.64377975 | W16: 75 | PB16: b | PC16: -683.5527404
C17: Total Additional Asphalt Cost | D17: 177 | M17: 13 | N17: 124312.5 | O17: 39.86717606 | P17: 128571.3906 | Q17: 36.26327896 | W17: 71 | PB17: c | PC17: 13.79680505
M18: 14 | N18: 134557.6875 | O18: 31.79816818 | P18: 139167.5781 | Q18: 27.96606636 | W18: 66 | PB18: d | PC18: 2.503266215
M19: 15 | N19: 144905.3281 | O19: 23.8475399 | P19: 149869.7344 | Q19: 19.82701874
C20: Insufficient or invalid historical PCI data. A default curve is used. | M20: 16 | N20: 155356.4531 | O20: 16.07204437 | P20: 160678.9062 | Q20: 11.89908791
M21: 17 | N21: 165912.0781 | O21: 8.511435509 | P21: 171596.1719 | Q21: 4.218009472
M22: 18 | N22: 176573.2656 | O22: 1.192197919 | P22: 182622.6094
M23: 19 | N23: 187341.0625 | P23: 193759.3125
M24: 20 | N24: 198216.5469 | P24: 205007.375
M25: 21
M26: 22
M27: 23
M28: 24
M29: 25
M30: 26
M31: 27
M32: 28
M33: 29
M34: 30
M35: 31
M36: 32
M37: 33
M38: 34
M39: 35
M40: 36
M41: 37
M42: 38
M43: 39
M44: 40
M45: 41
M46: 42
M47: 43
M48: 44
M49: 45
M50: 46
M51: 47
M52: 48
C53: Heavy Vehicle Impacts Tool | K53: Analysis Date: 8 Dec 2014 | M53: 49
C54: ="Version " & 'Main Tool'!D7 -> Version 1.04 | M54: 50
M55: 51
M56: 52
M57: 53
M58: 54
M59: 55
M60: 56
M61: 57
M62: 58
M63: 59
M64: 60
M65: 61
M66: 62
M67: 63
M68: 64
M69: 65
M70: 66
M71: 67
M72: 68
M73: 69
M74: 70
M75: 71
M76: 72
M77: 73
M78: 74
M79: 75
M80: 76
M81: 77
M82: 78
M83: 79
M84: 80

Sheet Report-Network
R1: Averages | S1: =AVERAGE(S8:OFFSET($S$8,Y1,0)) -> 18 | T1: =AVERAGE(T8:OFFSET($T$8,Y1,0)) -> 5208.234615 | U1: =AVERAGE(U8:OFFSET($U$8,Y1,0)) -> 0.03076923077 | V1: =AVERAGE(V8:OFFSET($V$8,Y1,0)) -> 618.8669231 | X1: Num Results | Y1: =COUNT(S8:S20) -> 13
P2: Network Report | R2: Totals | T2: =SUM(T8:OFFSET($T$8,Y1,0)) -> 67707.05 | V2: =SUM(V8:OFFSET($V$8,Y1,0)) -> 8045.27
C3: Heavy Vehicle Impacts Tool | PA3: PCI-Date Regression
C4: Network Analysis Report | O4: =Y1 -> 13 | P4: Count of PSI values | Z4: Distributions
Z5: Add'l Bit Thickness | AD5: Percent Life Consumed
P6: PCI in 10 Years | Z6: Thickness | AA6: Number | AB6: Percent | AE6: Number | AF6: Percent | AS6: ESAL over time - Without | DV6: PCI over time - Without | GY6: ESAL over time - With | KB6: PSI over time - With | PB6: PCI | PC6: PCI-date | PD6: PCI-Date-Serial Number | PG6: Age | PH6: Modeled PCI | PJ6: (act-model)^2
C7: Analysis Name | D7: NewAnalysis2 | G7: Heavy Vehicles Included in this Analysis | O7: Segment ID | P7: Without Additional | Q7: With Additional | R7: Additional PCI Loss | S7: % life over design | T7: % Life Cost, $/lane mile | U7: Additional Bit | V7: Additional Bit. Cost | W7: lane miles | Z7: 0.0-1.0 | AA7: =COUNTIF($U$8:OFFSET($U$8,Y1,0),"<=1") -> 13 | AB7: =AA7/$Y$1 -> 1 | AD7: 0-25 | AE7: =COUNTIF(S8:OFFSET($S$8,Y1,0),"<=25") -> 10 | AF7: =AE7/$Y$1 -> 0.7692307692 | AS7: 0 | AT7: 1 | AU7: 2 | AV7: 3 | AW7: 4 | AX7: 5 | AY7: 6 | AZ7: 7 | BA7: 8 | BB7: 9 | BC7: 10 | BD7: 11 | BE7: 12 | BF7: 13 | BG7: 14 | BH7: 15 | BI7: 16 | BJ7: 17 | BK7: 18 | BL7: 19 | BM7: 20 | BN7: 21 | BO7: 22 | BP7: 23 | BQ7: 24 | BR7: 25 | BS7: 26 | BT7: 27 | BU7: 28 | BV7: 29 | BW7: 30 | BX7: 31 | BY7: 32 | BZ7: 33 | CA7: 34 | CB7: 35 | CC7: 36 | CD7: 37 | CE7: 38 | CF7: 39 | CG7: 40 | CH7: 41 | CI7: 42 | CJ7: 43 | CK7: 44 | CL7: 45 | CM7: 46 | CN7: 47 | CO7: 48 | CP7: 49 | CQ7: 50 | CR7: 51 | CS7: 52 | CT7: 53 | CU7: 54 | CV7: 55 | CW7: 56 | CX7: 57 | CY7: 58 | CZ7: 59 | DA7: 60 | DB7: 61 | DC7: 62 | DD7: 63 | DE7: 64 | DF7: 65 | DG7: 66 | DH7: 67 | DI7: 68 | DJ7: 69 | DK7: 70 | DL7: 71 | DM7: 72 | DN7: 73 | DO7: 74 | DP7: 75 | DQ7: 76 | DR7: 77 | DS7: 78 | DT7: 79 | DU7: 80 | DV7: 0 | DW7: 1 | DX7: 2 | DY7: 3 | DZ7: 4 | EA7: 5 | EB7: 6 | EC7: 7 | ED7: 8 | EE7: 9 | EF7: 10 | EG7: 11 | EH7: 12 | EI7: 13 | EJ7: 14 | EK7: 15 | EL7: 16 | EM7: 17 | EN7: 18 | EO7: 19 | EP7: 20 | EQ7: 21 | ER7: 22 | ES7: 23 | ET7: 24 | EU7: 25 | EV7: 26 | EW7: 27 | EX7: 28 | EY7: 29 | EZ7: 30 | FA7: 31 | FB7: 32 | FC7: 33 | FD7: 34 | FE7: 35 | FF7: 36 | FG7: 37 | FH7: 38 | FI7: 39 | FJ7: 40 | FK7: 41 | FL7: 42 | FM7: 43 | FN7: 44 | FO7: 45 | FP7: 46 | FQ7: 47 | FR7: 48 | FS7: 49 | FT7: 50 | FU7: 51 | FV7: 52 | FW7: 53 | FX7: 54 | FY7: 55 | FZ7: 56 | GA7: 57 | GB7: 58 | GC7: 59 | GD7: 60 | GE7: 61 | GF7: 62 | GG7: 63 | GH7: 64 | GI7: 65 | GJ7: 66 | GK7: 67 | GL7: 68 | GM7: 69 | GN7: 70 | GO7: 71 | GP7: 72 | GQ7: 73 | GR7: 74 | GS7: 75 | GT7: 76 | GU7: 77 | GV7: 78 | GW7: 79 | GX7: 80 | GY7: 0 | GZ7: 1 | HA7: 2 | HB7: 3 | HC7: 4 | HD7: 5 | HE7: 6 | HF7: 7 | HG7: 8 | HH7: 9 | HI7: 10 | HJ7: 11 | HK7: 12 | HL7: 13 | HM7: 14 | HN7: 15 | HO7: 16 | HP7: 17 | HQ7: 18 | HR7: 19 | HS7: 20 | HT7: 21 | HU7: 22 | HV7: 23 | HW7: 24 | HX7: 25 | HY7: 26 | HZ7: 27 | IA7: 28 | IB7: 29 | IC7: 30 | ID7: 31 | IE7: 32 | IF7: 33 | IG7: 34 | IH7: 35 | II7: 36 | IJ7: 37 | IK7: 38 | IL7: 39 | IM7: 40 | IN7: 41 | IO7: 42 | IP7: 43 | IQ7: 44 | IR7: 45 | IS7: 46 | IT7: 47 | IU7: 48 | IV7: 49 | IW7: 50 | IX7: 51 | IY7: 52 | IZ7: 53 | JA7: 54 | JB7: 55 | JC7: 56 | JD7: 57 | JE7: 58 | JF7: 59 | JG7: 60 | JH7: 61 | JI7: 62 | JJ7: 63 | JK7: 64 | JL7: 65 | JM7: 66 | JN7: 67 | JO7: 68 | JP7: 69 | JQ7: 70 | JR7: 71 | JS7: 72 | JT7: 73 | JU7: 74 | JV7: 75 | JW7: 76 | JX7: 77 | JY7: 78 | JZ7: 79 | KA7: 80 | KB7: 0 | KC7: 1 | KD7: 2 | KE7: 3 | KF7: 4 | KG7: 5 | KH7: 6 | KI7: 7 | KJ7: 8 | KK7: 9 | KL7: 10 | KM7: 11 | KN7: 12 | KO7: 13 | KP7: 14 | KQ7: 15 | KR7: 16 | KS7: 17 | KT7: 18 | KU7: 19 | KV7: 20 | KW7: 21 | KX7: 22 | KY7: 23 | KZ7: 24 | LA7: 25 | LB7: 26 | LC7: 27 | LD7: 28 | LE7: 29 | LF7: 30 | LG7: 31 | LH7: 32 | LI7: 33 | LJ7: 34 | LK7: 35 | LL7: 36 | LM7: 37 | LN7: 38 | LO7: 39 | LP7: 40 | LQ7: 41 | LR7: 42 | LS7: 43 | LT7: 44 | LU7: 45 | LV7: 46 | LW7: 47 | LX7: 48 | LY7: 49 | LZ7: 50 | MA7: 51 | MB7: 52 | MC7: 53 | MD7: 54 | ME7: 55 | MF7: 56 | MG7: 57 | MH7: 58 | MI7: 59 | MJ7: 60 | MK7: 61 | ML7: 62 | MM7: 63 | MN7: 64 | MO7: 65 | MP7: 66 | MQ7: 67 | MR7: 68 | MS7: 69 | MT7: 70 | MU7: 71 | MV7: 72 | MW7: 73 | MX7: 74 | MY7: 75 | MZ7: 76 | NA7: 77 | NB7: 78 | NC7: 79 | ND7: 80 | PB7: 95 | PC7: 2008-10-01 | PD7: =PC7 -> 2008-10-01 | PG7: =(PD7-$PD$11)/365.25 -> 2.171115674 | PH7: =IF(PG7<>"",$PC$15+$PC$16*EXP(-(($PC$17/PG7)^$PC$18)),NA()) -> 90.66666717 | PJ7: =(PB7-PH7)^2 -> 18.77777339
C8: Number of Segments Analyzed | D8: 13 | J8: Vehicles per Week | O8: 1 | P8: 0 | Q8: 0 | R8: =P8-Q8 -> 0 | S8: 0.9 | T8: 267.36 | U8: 0.1 | V8: 531.19 | W8: 0.3125 | Z8: 1.0-2.0 | AA8: =COUNTIFS($U$8:OFFSET($U$8,Y1,0),">1",$U$8:OFFSET($U$8,Y1,0),"<=2.0") -> 0 | AB8: =AA8/$Y$1 -> 0 | AD8: 25-50 | AE8: =COUNTIFS(S8:OFFSET($S$8,Y1,0),">25",S8:OFFSET($S$8,Y1,0),"<=50") -> 0 | AF8: =AE8/$Y$1 -> 0 | AS8: 9594 | AT8: 19284 | AU8: 29071 | AV8: 38956 | AW8: 48940 | AX8: 59023 | AY8: 69207 | AZ8: 79493 | BA8: 89882 | BB8: 100375 | BC8: 110973 | BD8: 121677 | BE8: 132488 | BF8: 143407 | BG8: 154435 | BH8: 165573 | BI8: 176823 | BJ8: 188185 | BK8: 199661 | BL8: 211252 | DV8: 90.0618515 | DW8: 82.77472687 | DX8: 71.88057709 | DY8: 58.07067871 | DZ8: 42.26129532 | EA8: 25.30989456 | EB8: 7.904614925 | EC8: 0 | ED8: 0 | EE8: 0 | EF8: 0 | EG8: 0 | EH8: 0 | EI8: 0 | EJ8: 0 | EK8: 0 | EL8: 0 | EM8: 0 | EN8: 0 | EO8: 0 | EP8: 0 | GY8: 9902 | GZ8: 19903 | HA8: 30004 | HB8: 40206 | HC8: 50510 | HD8: 60918 | HE8: 71430 | HF8: 82047 | HG8: 92770 | HH8: 103600 | HI8: 114538 | HJ8: 125586 | HK8: 136744 | HL8: 148014 | HM8: 159397 | HN8: 170893 | HO8: 182504 | HP8: 194231 | HQ8: 206076 | HR8: 218039 | KB8: 90.0618515 | KC8: 82.47859192 | KD8: 71.07215881 | KE8: 56.6208725 | KF8: 40.13313675 | KG8: 22.53338623 | KH8: 4.544818878 | KI8: 0 | KJ8: 0 | KK8: 0 | KL8: 0 | KM8: 0 | KN8: 0 | KO8: 0 | KP8: 0 | KQ8: 0 | KR8: 0 | KS8: 0 | KT8: 0 | KU8: 0 | KV8: 0 | PB8: 85 | PC8: 2011-10-01 | PD8: =PC8 -> 2011-10-01 | PG8: =(PD8-$PD$11)/365.25 -> 5.169062286 | PH8: =IF(PG8<>"",$PC$15+$PC$16*EXP(-(($PC$17/PG8)^$PC$18)),NA()) -> 90.66666717 | PJ8: =(PB8-PH8)^2 -> 32.11111685
C9: Number of Segments in Database | D9: 13 | H9: Vehicle | K9: Full / Empty | O9: 2 | P9: 0 | Q9: 0 | R9: =P9-Q9 -> 0 | S9: 0.9 | T9: 283.02 | U9: 0 | V9: 224.92 | W9: 0.3308080733 | Z9: 2.0-3.0 | AA9: =COUNTIFS($U$8:OFFSET($U$8,Y1,0),">2.0",$U$8:OFFSET($U$8,Y1,0),"<=3.0") -> 0 | AB9: 0 | AD9: 50-75 | AE9: =COUNTIFS(S8:OFFSET($S$8,Y1,0),">50",S8:OFFSET($S$8,Y1,0),"<=75") -> 3 | AF9: 0.2307692308 | AS9: 15330 | AT9: 30813 | AU9: 46451 | AV9: 62246 | AW9: 78198 | AX9: 94310 | AY9: 110583 | AZ9: 127019 | BA9: 143619 | BB9: 160385 | BC9: 177319 | BD9: 194422 | BE9: 211696 | BF9: 229143 | BG9: 246764 | BH9: 264562 | BI9: 282538 | BJ9: 300693 | BK9: 319030 | BL9: 337550 | DV9: 23.8475399 | DW9: 16.07204437 | DX9: 8.511435509 | DY9: 1.192197919 | DZ9: 0 | EA9: 0 | EB9: 0 | EC9: 0 | ED9: 0 | EE9: 0 | EF9: 0 | EG9: 0 | EH9: 0 | EI9: 0 | EJ9: 0 | EK9: 0 | EL9: 0 | EM9: 0 | EN9: 0 | EO9: 0 | EP9: 0 | GY9: 15638 | GZ9: 31433 | HA9: 47386 | HB9: 63498 | HC9: 79771 | HD9: 96207 | HE9: 112807 | HF9: 129573 | HG9: 146507 | HH9: 163610 | HI9: 180885 | HJ9: 198332 | HK9: 215954 | HL9: 233752 | HM9: 251728 | HN9: 269884 | HO9: 288221 | HP9: 306742 | HQ9: 325448 | HR9: 344341 | KB9: 23.8475399 | KC9: 15.91791821 | KD9: 8.212090492 | KE9: 0.7583472133 | KF9: 0 | KG9: 0 | KH9: 0 | KI9: 0 | KJ9: 0 | KK9: 0 | KL9: 0 | KM9: 0 | KN9: 0 | KO9: 0 | KP9: 0 | KQ9: 0 | KR9: 0 | KS9: 0 | KT9: 0 | KU9: 0 | KV9: 0 | PB9: 92 | PC9: 2014-10-07 | PD9: =PC9 -> 2014-10-07 | PG9: 8.186173854 | PH9: =IF(PG9<>"",$PC$15+$PC$16*EXP(-(($PC$17/PG9)^$PC$18)),NA()) -> 90.66666717 | PJ9: =(PB9-PH9)^2 -> 1.777776435
H10: W5 - Waste - Side Load | J10: 4 | K10: 1/2 Full | O10: 3 | P10: 63.86845016 | Q10: 61.21847534 | R10: 2.649974823 | S10: 67.9 | T10: 24758.23 | U10: 0 | V10: 495.01 | W10: 0.3645833433 | Z10: >3.0 | AA10: =COUNTIF($U$8:OFFSET($U$8,Y1,0),">3.0") -> 0 | AB10: 0 | AD10: 75-100 | AE10: =COUNTIFS(S8:OFFSET($S$8,Y1,0),">75",S8:OFFSET($S$8,Y1,0),"<=100") -> 0 | AF10: 0 | AS10: 9021 | AT10: 18132 | AU10: 27334 | AV10: 36628 | AW10: 46015 | AX10: 55496 | AY10: 65072 | AZ10: 74744 | BA10: 84512 | BB10: 94378 | BC10: 104343 | BD10: 114407 | BE10: 124572 | BF10: 134839 | BG10: 145208 | BH10: 155681 | BI10: 166259 | BJ10: 176943 | BK10: 187733 | BL10: 198631 | DV10: 97.99987793 | DW10: 97.99117279 | DX10: 97.8735199 | DY10: 97.32966614 | DZ10: 95.92556 | EA10: 93.33834076 | EB10: 89.46082306 | EC10: 84.3713913 | ED10: 78.25740051 | EE10: 71.34758759 | EF10: 63.86845016 | EG10: 56.02185059 | EH10: 47.97647095 | EI10: 39.86717606 | EJ10: 31.79816818 | EK10: 23.8475399 | EL10: 16.07204437 | EM10: 8.511435509 | EN10: 1.192197919 | EO10: 0 | EP10: 0 | GY10: 9329 | GZ10: 18752 | HA10: 28269 | HB10: 37881 | HC10: 47589 | HD10: 57394 | HE10: 67297 | HF10: 77299 | HG10: 87401 | HH10: 97604 | HI10: 107909 | HJ10: 118318 | HK10: 128831 | HL10: 139449 | HM10: 150173 | HN10: 161004 | HO10: 171943 | HP10: 182992 | HQ10: 194151 | HR10: 205422 | KB10: 97.99987793 | KC10: 97.99008942 | KD10: 97.8547287 | KE10: 97.23219299 | KF10: 95.64611816 | KG10: 92.76641846 | KH10: 88.51023865 | KI10: 82.99294281 | KJ10: 76.43701172 | KK10: 69.09721375 | KL10: 61.21847534 | KM10: 53.01266861 | KN10: 44.65104294 | KO10: 36.27067566 | KP10: 27.9739399 | KQ10: 19.8348732 | KR10: 11.90729618 | KS10: 4.22694397 | KT10: 0 | KU10: 0 | KV10: 0
C11: Average Percent of Life Consumed | D11: =ROUND(S1,1) & "%" -> 18% | O11: 4 | P11: 52.91967773 | Q11: 52.91967773 | R11: 0 | S11: 2.4 | T11: 2576.94 | U11: 0.1 | V11: 1854.48 | W11: 1.09098804 | AD11: >100 | AE11: =COUNTIF(S8:OFFSET($S$8,Y1,0),">100") -> 0 | AF11: 0 | AS11: 9594 | AT11: 19284 | AU11: 29071 | AV11: 38956 | AW11: 48940 | AX11: 59023 | AY11: 69207 | AZ11: 79493 | BA11: 89882 | BB11: 100375 | BC11: 110973 | BD11: 121677 | BE11: 132488 | BF11: 143407 | BG11: 154435 | BH11: 165573 | BI11: 176823 | BJ11: 188185 | BK11: 199661 | BL11: 211252 | DV11: 52.92221069 | DW11: 52.92029953 | DX11: 52.91983414 | DY11: 52.9197197 | DZ11: 52.91968918 | EA11: 52.91968155 | EB11: 52.91967773 | EC11: 52.91967773 | ED11: 52.91967773 | EE11: 52.91967773 | EF11: 52.91967773 | EG11: 52.91967773 | EH11: 52.91967773 | EI11: 52.91967773 | EJ11: 52.91967773 | EK11: 52.91967773 | EL11: 52.91967773 | EM11: 52.91967773 | EN11: 52.91967773 | EO11: 52.91967773 | EP11: 52.91967773 | GY11: 9902 | GZ11: 19903 | HA11: 30004 | HB11: 40206 | HC11: 50510 | HD11: 60918 | HE11: 71430 | HF11: 82047 | HG11: 92770 | HH11: 103600 | HI11: 114538 | HJ11: 125586 | HK11: 136744 | HL11: 148014 | HM11: 159397 | HN11: 170893 | HO11: 182504 | HP11: 194231 | HQ11: 206076 | HR11: 218039 | KB11: 52.92221069 | KC11: 52.92027283 | KD11: 52.91982269 | KE11: 52.91971207 | KF11: 52.91968536 | KG11: 52.91968155 | KH11: 52.91967773 | KI11: 52.91967773 | KJ11: 52.91967773 | KK11: 52.91967773 | KL11: 52.91967773 | KM11: 52.91967773 | KN11: 52.91967773 | KO11: 52.91967773 | KP11: 52.91967773 | KQ11: 52.91967773 | KR11: 52.91967773 | KS11: 52.91967773 | KT11: 52.91967773 | KU11: 52.91967773 | KV11: 52.91967773 | PB11: Last Recon | PC11: 2006 | PD11: =TEXT("7/31/"&PC11,"0") -> 38929 | PE11: (31 July of reconstruct year) | PI11: sum | PJ11: =SUM(PJ7:PJ9) -> 52.66666667
C12: Total Network Cost of Consumed Life | D12: =T2 -> 67707.05 | O12: 5 | P12: 53.48803711 | Q12: 53.48803711 | R12: 0 | S12: 1.2 | T12: 1028.91 | U12: 0 | V12: 1131.46 | W12: 0.8333333135 | AS12: 9021 | AT12: 18132 | AU12: 27334 | AV12: 36628 | AW12: 46015 | AX12: 55496 | AY12: 65072 | AZ12: 74744 | BA12: 84512 | BB12: 94378 | BC12: 104343 | BD12: 114407 | BE12: 124572 | BF12: 134839 | BG12: 145208 | BH12: 155681 | BI12: 166259 | BJ12: 176943 | BK12: 187733 | BL12: 198631 | DV12: 53.48809814 | DW12: 53.48804474 | DX12: 53.48803711 | DY12: 53.48803711 | DZ12: 53.48803711 | EA12: 53.48803711 | EB12: 53.48803711 | EC12: 53.48803711 | ED12: 53.48803711 | EE12: 53.48803711 | EF12: 53.48803711 | EG12: 53.48803711 | EH12: 53.48803711 | EI12: 53.48803711 | EJ12: 53.48803711 | EK12: 53.48803711 | EL12: 53.48803711 | EM12: 53.48803711 | EN12: 53.48803711 | EO12: 53.48803711 | EP12: 53.48803711 | GY12: 9329 | GZ12: 18752 | HA12: 28269 | HB12: 37881 | HC12: 47589 | HD12: 57394 | HE12: 67297 | HF12: 77299 | HG12: 87401 | HH12: 97604 | HI12: 107909 | HJ12: 118318 | HK12: 128831 | HL12: 139449 | HM12: 150173 | HN12: 161004 | HO12: 171943 | HP12: 182992 | HQ12: 194151 | HR12: 205422 | KB12: 53.48809814 | KC12: 53.48804474 | KD12: 53.48803711 | KE12: 53.48803711 | KF12: 53.48803711 | KG12: 53.48803711 | KH12: 53.48803711 | KI12: 53.48803711 | KJ12: 53.48803711 | KK12: 53.48803711 | KL12: 53.48803711 | KM12: 53.48803711 | KN12: 53.48803711 | KO12: 53.48803711 | KP12: 53.48803711 | KQ12: 53.48803711 | KR12: 53.48803711 | KS12: 53.48803711 | KT12: 53.48803711 | KU12: 53.48803711 | KV12: 53.48803711
O13: 6 | P13: 27.10300827 | Q13: 26.9281559 | R13: 0.1748523712 | S13: 1.2 | T13: 1028.91 | U13: 0 | V13: 1131.46 | W13: 0.8333333135 | AS13: 9021 | AT13: 18132 | AU13: 27334 | AV13: 36628 | AW13: 46015 | AX13: 55496 | AY13: 65072 | AZ13: 74744 | BA13: 84512 | BB13: 94378 | BC13: 104343 | BD13: 114407 | BE13: 124572 | BF13: 134839 | BG13: 145208 | BH13: 155681 | BI13: 166259 | BJ13: 176943 | BK13: 187733 | BL13: 198631 | DV13: 40.51563644 | DW13: 37.92531967 | DX13: 35.75839233 | DY13: 33.94150543 | DZ13: 32.41440201 | EA13: 31.1275959 | EB13: 30.04045296 | EC13: 29.11958313 | ED13: 28.33749771 | EE13: 27.67154503 | EF13: 27.10300827 | EG13: 26.61639786 | EH13: 26.19886398 | EI13: 25.83971786 | EJ13: 25.53005409 | EK13: 25.26242447 | EL13: 25.03059196 | EM13: 24.82932091 | EN13: 24.65420151 | EO13: 24.50150871 | EP13: 24.36809731 | GY13: 9329 | GZ13: 18752 | HA13: 28269 | HB13: 37881 | HC13: 47589 | HD13: 57394 | HE13: 67297 | HF13: 77299 | HG13: 87401 | HH13: 97604 | HI13: 107909 | HJ13: 118318 | HK13: 128831 | HL13: 139449 | HM13: 150173 | HN13: 161004 | HO13: 171943 | HP13: 182992 | HQ13: 194151 | HR13: 205422 | KB13: 40.51563644 | KC13: 37.84481049 | KD13: 35.62373734 | KE13: 33.77236938 | KF13: 32.22512436 | KG13: 30.92851257 | KH13: 29.83890724 | KI13: 28.920681 | KJ13: 28.1446991 | KK13: 27.48703003 | KL13: 26.9281559 | KM13: 26.45194817 | KN13: 26.04501534 | KO13: 25.69644928 | KP13: 25.39711952 | KQ13: 25.13940048 | KR13: 24.916996 | KS13: 24.72461319 | KT13: 24.55780029 | KU13: 24.41283417 | KV13: 24.28658104
C14: Average Additional Asphalt Thickness | D14: =ROUND(U1,1) & " in." -> 0 in. | O14: 7 | P14: 26.10480118 | Q14: 23.48298264 | R14: 2.621818542 | S14: 67.9 | T14: 24758.23 | U14: 0 | V14: 495.01 | W14: 0.3645833433 | AS14: 9021 | AT14: 18132 | AU14: 27334 | AV14: 36628 | AW14: 46015 | AX14: 55496 | AY14: 65072 | AZ14: 74744 | BA14: 84512 | BB14: 94378 | BC14: 104343 | BD14: 114407 | BE14: 124572 | BF14: 134839 | BG14: 145208 | BH14: 155681 | BI14: 166259 | BJ14: 176943 | BK14: 187733 | BL14: 198631 | DV14: 80.65679169 | DW14: 77.03380585 | DX14: 73.02989197 | DY14: 68.63258362 | DZ14: 63.8309288 | EA14: 58.61552048 | EB14: 52.97844315 | EC14: 46.9132309 | ED14: 40.41482544 | EE14: 33.47949982 | EF14: 26.10480118 | EG14: 18.28947067 | EH14: 10.03338432 | EI14: 1.337461948 | EJ14: 0 | EK14: 0 | EL14: 0 | EM14: 0 | EN14: 0 | EO14: 0 | EP14: 0 | GY14: 9329 | GZ14: 18752 | HA14: 28269 | HB14: 37881 | HC14: 47589 | HD14: 57394 | HE14: 67297 | HF14: 77299 | HG14: 87401 | HH14: 97604 | HI14: 107909 | HJ14: 118318 | HK14: 128831 | HL14: 139449 | HM14: 150173 | HN14: 161004 | HO14: 171943 | HP14: 182992 | HQ14: 194151 | HR14: 205422 | KB14: 80.65679169 | KC14: 76.90345764 | KD14: 72.74183655 | KE14: 68.15863037 | KF14: 63.14190292 | KG14: 57.68149185 | KH14: 51.76893616 | KI14: 45.39743042 | KJ14: 38.56177521 | KK14: 31.2574749 | KL14: 23.48298264 | KM14: 15.23740768 | KN14: 6.519269943 | KO14: 0 | KP14: 0 | KQ14: 0 | KR14: 0 | KS14: 0 | KT14: 0 | KU14: 0 | KV14: 0 | PB14: Regression Factors
C15: Total Network Cost of Additional Asphalt | D15: =V2 -> 8045.27 | O15: 8 | P15: 0 | Q15: 0 | R15: 0 | S15: 67.9 | T15: 7127.37 | U15: 0 | V15: 142.5 | W15: 0.1049558073 | AS15: 9021 | AT15: 18132 | AU15: 27334 | AV15: 36628 | AW15: 46015 | AX15: 55496 | AY15: 65072 | AZ15: 74744 | BA15: 84512 | BB15: 94378 | BC15: 104343 | BD15: 114407 | BE15: 124572 | BF15: 134839 | BG15: 145208 | BH15: 155681 | BI15: 166259 | BJ15: 176943 | BK15: 187733 | BL15: 198631 | DV15: -78.84223175 | DW15: 0 | DX15: 0 | DY15: 0 | DZ15: 0 | EA15: 0 | EB15: 0 | EC15: 0 | ED15: 0 | EE15: 0 | EF15: 0 | EG15: 0 | EH15: 0 | EI15: 0 | EJ15: 0 | EK15: 0 | EL15: 0 | EM15: 0 | EN15: 0 | EO15: 0 | EP15: 0 | GY15: 9329 | GZ15: 18752 | HA15: 28269 | HB15: 37881 | HC15: 47589 | HD15: 57394 | HE15: 67297 | HF15: 77299 | HG15: 87401 | HH15: 97604 | HI15: 107909 | HJ15: 118318 | HK15: 128831 | HL15: 139449 | HM15: 150173 | HN15: 161004 | HO15: 171943 | HP15: 182992 | HQ15: 194151 | HR15: 205422 | KB15: -78.84223175 | KC15: 0 | KD15: 0 | KE15: 0 | KF15: 0 | KG15: 0 | KH15: 0 | KI15: 0 | KJ15: 0 | KK15: 0 | KL15: 0 | KM15: 0 | KN15: 0 | KO15: 0 | KP15: 0 | KQ15: 0 | KR15: 0 | KS15: 0 | KT15: 0 | KU15: 0 | KV15: 0 | PB15: a | PC15: 90.66666717
O16: 9 | P16: 0 | Q16: 0 | R16: 0 | S16: 2.4 | T16: 306.77 | U16: 0 | V16: 139.67 | W16: 0.1298768967 | AS16: 13505 | AT16: 27145 | AU16: 40921 | AV16: 54835 | AW16: 68888 | AX16: 83082 | AY16: 97418 | AZ16: 111897 | BA16: 126521 | BB16: 141291 | BC16: 156209 | BD16: 171276 | BE16: 186494 | BF16: 201864 | BG16: 217388 | BH16: 233067 | BI16: 248903 | BJ16: 264897 | BK16: 281051 | BL16: 297367 | DV16: 83.77471161 | DW16: 62.02178192 | DX16: 18.8816967 | DY16: 0 | DZ16: 0 | EA16: 0 | EB16: 0 | EC16: 0 | ED16: 0 | EE16: 0 | EF16: 0 | EG16: 0 | EH16: 0 | EI16: 0 | EJ16: 0 | EK16: 0 | EL16: 0 | EM16: 0 | EN16: 0 | EO16: 0 | EP16: 0 | GY16: 13813 | GZ16: 27765 | HA16: 41856 | HB16: 56088 | HC16: 70462 | HD16: 84980 | HE16: 99643 | HF16: 114453 | HG16: 129411 | HH16: 144519 | HI16: 159778 | HJ16: 175189 | HK16: 190754 | HL16: 206475 | HM16: 222353 | HN16: 238390 | HO16: 254587 | HP16: 270946 | HQ16: 287469 | HR16: 304157 | KB16: 83.77471161 | KC16: 61.30473709 | KD16: 16.29208755 | KE16: 0 | KF16: 0 | KG16: 0 | KH16: 0 | KI16: 0 | KJ16: 0 | KK16: 0 | KL16: 0 | KM16: 0 | KN16: 0 | KO16: 0 | KP16: 0 | KQ16: 0 | KR16: 0 | KS16: 0 | KT16: 0 | KU16: 0 | KV16: 0 | PB16: b | PC16: -212.7023159
O17: 10 | P17: 0 | Q17: 0 | R17: 0 | S17: 0.9 | T17: 271.14 | U17: 0 | V17: 430.3 | W17: 0.3169191778 | AS17: 9021 | AT17: 18132 | AU17: 27334 | AV17: 36628 | AW17: 46015 | AX17: 55496 | AY17: 65072 | AZ17: 74744 | BA17: 84512 | BB17: 94378 | BC17: 104343 | BD17: 114407 | BE17: 124572 | BF17: 134839 | BG17: 145208 | BH17: 155681 | BI17: 166259 | BJ17: 176943 | BK17: 187733 | BL17: 198631 | DV17: 81.534935 | DW17: 55.8815918 | DX17: 14.1810379 | DY17: 0 | DZ17: 0 | EA17: 0 | EB17: 0 | EC17: 0 | ED17: 0 | EE17: 0 | EF17: 0 | EG17: 0 | EH17: 0 | EI17: 0 | EJ17: 0 | EK17: 0 | EL17: 0 | EM17: 0 | EN17: 0 | EO17: 0 | EP17: 0 | GY17: 9329 | GZ17: 18752 | HA17: 28269 | HB17: 37881 | HC17: 47589 | HD17: 57394 | HE17: 67297 | HF17: 77299 | HG17: 87401 | HH17: 97604 | HI17: 107909 | HJ17: 118318 | HK17: 128831 | HL17: 139449 | HM17: 150173 | HN17: 161004 | HO17: 171943 | HP17: 182992 | HQ17: 194151 | HR17: 205422 | KB17: 81.534935 | KC17: 54.71260452 | KD17: 10.81477547 | KE17: 0 | KF17: 0 | KG17: 0 | KH17: 0 | KI17: 0 | KJ17: 0 | KK17: 0 | KL17: 0 | KM17: 0 | KN17: 0 | KO17: 0 | KP17: 0 | KQ17: 0 | KR17: 0 | KS17: 0 | KT17: 0 | KU17: 0 | KV17: 0 | PB17: c | PC17: 45.69121514
O18: 11 | P18: 89.97341156 | Q18: 89.82137299 | R18: 0.1520385742 | S18: 0.9 | T18: 222.12 | U18: 0 | V18: 352.51 | W18: 0.259627521 | Y18: AT 5 YEARS | AS18: 9021 | AT18: 18132 | AU18: 27334 | AV18: 36628 | AW18: 46015 | AX18: 55496 | AY18: 65072 | AZ18: 74744 | BA18: 84512 | BB18: 94378 | BC18: 104343 | BD18: 114407 | BE18: 124572 | BF18: 134839 | BG18: 145208 | BH18: 155681 | BI18: 166259 | BJ18: 176943 | BK18: 187733 | BL18: 198631 | DV18: 90.66666412 | DW18: 90.66666412 | DX18: 90.66665649 | DY18: 90.66654968 | DZ18: 90.66563416 | EA18: 90.66101074 | EB18: 90.64450073 | EC18: 90.59929657 | ED18: 90.49803925 | EE18: 90.3037262 | EF18: 89.97341156 | EG18: 89.46318054 | EH18: 88.73321533 | EI18: 87.7516098 | EJ18: 86.49664307 | EK18: 84.95743561 | EL18: 83.13342285 | EM18: 81.03299713 | EN18: 78.6717453 | EO18: 76.0705719 | EP18: 73.25395203 | GY18: 9329 | GZ18: 18752 | HA18: 28269 | HB18: 37881 | HC18: 47589 | HD18: 57394 | HE18: 67297 | HF18: 77299 | HG18: 87401 | HH18: 97604 | HI18: 107909 | HJ18: 118318 | HK18: 128831 | HL18: 139449 | HM18: 150173 | HN18: 161004 | HO18: 171943 | HP18: 182992 | HQ18: 194151 | HR18: 205422 | KB18: 90.66666412 | KC18: 90.66666412 | KD18: 90.66665649 | KE18: 90.66651154 | KF18: 90.66533661 | KG18: 90.65936279 | KH18: 90.63830566 | KI18: 90.58141327 | KJ18: 90.45588684 | KK18: 90.21865845 | KL18: 89.82137299 | KM18: 89.21646118 | KN18: 88.36245728 | KO18: 87.22846985 | KP18: 85.79563904 | KQ18: 84.05716705 | KR18: 82.01774597 | KS18: 79.69116211 | KT18: 77.09799957 | KU18: 74.26392365 | KV18: 71.21759796 | PB18: d | PC18: 1.873319511
O19: 12 | P19: 89.97341156 | Q19: 89.82137299 | R19: 0.1520385742 | S19: 2 | T19: 528.15 | U19: 0.1 | V19: 494.2 | W19: 0.259627521 | Z19: Final Condition Rating - Without | AD19: Final Condition Rating - With | AS19: 9021 | AT19: 18132 | AU19: 27334 | AV19: 36628 | AW19: 46015 | AX19: 55496 | AY19: 65072 | AZ19: 74744 | BA19: 84512 | BB19: 94378 | BC19: 104343 | BD19: 114407 | BE19: 124572 | BF19: 134839 | BG19: 145208 | BH19: 155681 | BI19: 166259 | BJ19: 176943 | BK19: 187733 | BL19: 198631 | DV19: 90.66666412 | DW19: 90.66666412 | DX19: 90.66665649 | DY19: 90.66654968 | DZ19: 90.66563416 | EA19: 90.66101074 | EB19: 90.64450073 | EC19: 90.59929657 | ED19: 90.49803925 | EE19: 90.3037262 | EF19: 89.97341156 | EG19: 89.46318054 | EH19: 88.73321533 | EI19: 87.7516098 | EJ19: 86.49664307 | EK19: 84.95743561 | EL19: 83.13342285 | EM19: 81.03299713 | EN19: 78.6717453 | EO19: 76.0705719 | EP19: 73.25395203 | GY19: 9329 | GZ19: 18752 | HA19: 28269 | HB19: 37881 | HC19: 47589 | HD19: 57394 | HE19: 67297 | HF19: 77299 | HG19: 87401 | HH19: 97604 | HI19: 107909 | HJ19: 118318 | HK19: 128831 | HL19: 139449 | HM19: 150173 | HN19: 161004 | HO19: 171943 | HP19: 182992 | HQ19: 194151 | HR19: 205422 | KB19: 90.66666412 | KC19: 90.66666412 | KD19: 90.66665649 | KE19: 90.66651154 | KF19: 90.66533661 | KG19: 90.65936279 | KH19: 90.63830566 | KI19: 90.58141327 | KJ19: 90.45588684 | KK19: 90.21865845 | KL19: 89.82137299 | KM19: 89.21646118 | KN19: 88.36245728 | KO19: 87.22846985 | KP19: 85.79563904 | KQ19: 84.05716705 | KR19: 82.01774597 | KS19: 79.69116211 | KT19: 77.09799957 | KU19: 74.26392365 | KV19: 71.21759796
O20: 13 | P20: 89.97341156 | Q20: 89.82137299 | R20: 0.1520385742 | S20: 17.5 | T20: 4549.9 | U20: 0.1 | V20: 622.56 | W20: 0.259627521 | AA20: Number | AB20: Percent | AE20: Number | AF20: Percent | AS20: 9021 | AT20: 18132 | AU20: 27334 | AV20: 36628 | AW20: 46015 | AX20: 55496 | AY20: 65072 | AZ20: 74744 | BA20: 84512 | BB20: 94378 | BC20: 104343 | BD20: 114407 | BE20: 124572 | BF20: 134839 | BG20: 145208 | BH20: 155681 | BI20: 166259 | BJ20: 176943 | BK20: 187733 | BL20: 198631 | DV20: 90.66666412 | DW20: 90.66666412 | DX20: 90.66665649 | DY20: 90.66654968 | DZ20: 90.66563416 | EA20: 90.66101074 | EB20: 90.64450073 | EC20: 90.59929657 | ED20: 90.49803925 | EE20: 90.3037262 | EF20: 89.97341156 | EG20: 89.46318054 | EH20: 88.73321533 | EI20: 87.7516098 | EJ20: 86.49664307 | EK20: 84.95743561 | EL20: 83.13342285 | EM20: 81.03299713 | EN20: 78.6717453 | EO20: 76.0705719 | EP20: 73.25395203 | GY20: 9329 | GZ20: 18752 | HA20: 28269 | HB20: 37881 | HC20: 47589 | HD20: 57394 | HE20: 67297 | HF20: 77299 | HG20: 87401 | HH20: 97604 | HI20: 107909 | HJ20: 118318 | HK20: 128831 | HL20: 139449 | HM20: 150173 | HN20: 161004 | HO20: 171943 | HP20: 182992 | HQ20: 194151 | HR20: 205422 | KB20: 90.66666412 | KC20: 90.66666412 | KD20: 90.66665649 | KE20: 90.66651154 | KF20: 90.66533661 | KG20: 90.65936279 | KH20: 90.63830566 | KI20: 90.58141327 | KJ20: 90.45588684 | KK20: 90.21865845 | KL20: 89.82137299 | KM20: 89.21646118 | KN20: 88.36245728 | KO20: 87.22846985 | KP20: 85.79563904 | KQ20: 84.05716705 | KR20: 82.01774597 | KS20: 79.69116211 | KT20: 77.09799957 | KU20: 74.26392365 | KV20: 71.21759796
Y21: 0-30 | Z21: < 2.0 | AA21: =COUNTIF($EA$8:OFFSET($EA$8,Y1,0),"<=30") -> 5 | AB21: =AA21/$Y$1 -> 0.3846153846 | AD21: < 2.0 | AE21: =COUNTIF($KG$8:OFFSET($KG$8,Y1,0),"<=30") -> 5 | AF21: =AE21/$Y$1 -> 0.3846153846
Y22: 30-50 | Z22: 2.0-2.5 | AA22: =COUNTIFS($EA$8:OFFSET($EA$8,Y1,0),">30",$EA$8:OFFSET($EA$8,Y1,0),"<=50") -> 1 | AB22: =AA22/$Y$1 -> 0.07692307692 | AD22: 2.0-2.5 | AE22: =COUNTIFS($KG$8:OFFSET($KG$8,Y1,0),">30",$KG$8:OFFSET($KG$8,Y1,0),"<=50") -> 1 | AF22: =AE22/$Y$1 -> 0.07692307692
Y23: 50-70 | Z23: 2.5-3.0 | AA23: =COUNTIFS($EA$8:OFFSET($EA$8,Y1,0),">50",$EA$8:OFFSET($EA$8,Y1,0),"<=70") -> 3 | AB23: 0.2307692308 | AD23: 2.5-3.0 | AE23: =COUNTIFS($KG$8:OFFSET($KG$8,Y1,0),">50",$KG$8:OFFSET($KG$8,Y1,0),"<=70") -> 3 | AF23: 0.2307692308
Y24: 70-80 | Z24: 3.0-3.5 | AA24: =COUNTIFS($EA$8:OFFSET($EA$8,Y1,0),">70",$EA$8:OFFSET($EA$8,Y1,0),"<=80") -> 0 | AB24: 0 | AD24: 3.0-3.5 | AE24: =COUNTIFS($KG$8:OFFSET($KG$8,Y1,0),">70",$KG$8:OFFSET($KG$8,Y1,0),"<=80") -> 0 | AF24: 0
Y25: 80-90 | Z25: 3.5-4.0 | AA25: =COUNTIFS($EA$8:OFFSET($EA$8,Y1,0),">80",$EA$8:OFFSET($EA$8,Y1,0),"<=90") -> 0 | AB25: 0 | AD25: 3.5-4.0 | AE25: =COUNTIFS($KG$8:OFFSET($KG$8,Y1,0),">80",$KG$8:OFFSET($KG$8,Y1,0),"<=90") -> 0 | AF25: 0
Y26: 90-100 | Z26: >4.0 | AA26: =COUNTIF($EA$8:OFFSET($EA$8,Y1,0),">90") -> 4 | AB26: 0.3076923077 | AD26: >4.0 | AE26: =COUNTIF($KG$8:OFFSET($KG$8,Y1,0),">90") -> 4 | AF26: 0.3076923077
Y32: AT 10 YEARS
Z33: Final Condition Rating - Without | AD33: Final Condition Rating - With
AA34: Number | AB34: Percent | AE34: Number | AF34: Percent
Y35: 0-30 | Z35: < 2.0 | AA35: =COUNTIF($EF$8:OFFSET($EF$8,Y1,0),"<=30") -> 7 | AB35: =AA35/$Y$1 -> 0.5384615385 | AD35: < 2.0 | AE35: =COUNTIF($KL$8:OFFSET($KL$8,Y1,0),"<=30") -> 7 | AF35: =AE35/$Y$1 -> 0.5384615385
Y36: 30-50 | Z36: 2.0-2.5 | AA36: =COUNTIFS($EF$8:OFFSET($EF$8,Y1,0),">30",$EF$8:OFFSET($EF$8,Y1,0),"<=50") -> 0 | AB36: =AA36/$Y$1 -> 0 | AD36: 2.0-2.5 | AE36: =COUNTIFS($KL$8:OFFSET($KL$8,Y1,0),">30",$KL$8:OFFSET($KL$8,Y1,0),"<=50") -> 0 | AF36: =AE36/$Y$1 -> 0
Y37: 50-70 | Z37: 2.5-3.0 | AA37: =COUNTIFS($EF$8:OFFSET($EF$8,Y1,0),">50",$EF$8:OFFSET($EF$8,Y1,0),"<=70") -> 3 | AB37: 0.2307692308 | AD37: 2.5-3.0 | AE37: =COUNTIFS($KL$8:OFFSET($KL$8,Y1,0),">50",$KL$8:OFFSET($KL$8,Y1,0),"<=70") -> 3 | AF37: 0.2307692308
Y38: 70-80 | Z38: 3.0-3.5 | AA38: =COUNTIFS($EF$8:OFFSET($EF$8,Y1,0),">70",$EF$8:OFFSET($EF$8,Y1,0),"<=80") -> 0 | AB38: 0 | AD38: 3.0-3.5 | AE38: =COUNTIFS($KL$8:OFFSET($KL$8,Y1,0),">70",$KL$8:OFFSET($KL$8,Y1,0),"<=80") -> 0 | AF38: 0
Y39: 80-90 | Z39: 3.5-4.0 | AA39: =COUNTIFS($EF$8:OFFSET($EF$8,Y1,0),">80",$EF$8:OFFSET($EF$8,Y1,0),"<=90") -> 3 | AB39: 0.2307692308 | AD39: 3.5-4.0 | AE39: =COUNTIFS($KL$8:OFFSET($KL$8,Y1,0),">80",$KL$8:OFFSET($KL$8,Y1,0),"<=90") -> 3 | AF39: 0.2307692308
Y40: 90-100 | Z40: >4.0 | AA40: =COUNTIF($EF$8:OFFSET($EF$8,Y1,0),">90") -> 0 | AB40: 0 | AD40: >4.0 | AE40: =COUNTIF($KL$8:OFFSET($KL$8,Y1,0),">90") -> 0 | AF40: 0
C58: Heavy Vehicle Impacts Tool | K58: Analysis Date: 23 Jan 2015
C59: ="Version " & 'Main Tool'!D7 -> Version 1.04

Sheet User Guide
B2: ="Heavy Vehicles Impacts Tool, Version " & 'Main Tool'!D7 -> Heavy Vehicles Impacts Tool, Version 1.04
B3: ="Released " & TEXT('Main Tool'!D8,"mmm yyyy") -> Released Dec 2014
B6: User Guide
B8: 1. There are no user settings or inputs accessible in the spreadsheet itself.
C9: a. | D9: To change inputs or settings, press the "Launch…" button and use the user interface that opens.
B11: 2. User-Defined Settings
C12: a. | D12: Click on the “Settings” button to access user-defined settings
C13: b. | D13: Select startup behavior: Load the previous analysis on startup, or begin with a blank analysis
C14: c. | D14: Press “Cancel” to exit without saving the settings changes, or “OK” to save the changes and exit
B16: 3. User Inputs
C17: a. | D17: Cost and Other Information
E18: Click “Cost and Other Information” to access this area.
E19: Enter construction cost information, minimum overlay thickness desired, traffic growth rate, etc.
E20: Press “Cancel” to exit without saving the changes, or “OK” to save and exit
C21: b. | D21: Analysis Vehicles
E22: Select the interval desired: “Additional vehicles per…” (Day, Week, Month, Season, Year)
E23: Select up to nine vehicle types. Duplicates are accepted
E24: For each vehicle, enter the number expected per chosen interval
E25: Also for each vehicle, indicate whether they are to be modeled as Full, ½ Full, or Empty
C26: c. | D26: To review vehicle types and axle configurations, click “Review Vehicle Types”
E27: Select the vehicle type to review by clicking in the list
E28: End by pressing “Close”
C29: d. | D29: To enter a custom vehicle types configuration, click “Define Custom Vehicles”
E30: To review characteristics of a previously defined vehicle, select from the list
E31: To create a new vehicle definition:
F32: Select “Create New Vehicle” from the list
F33: Enter axle load and configurations (once the data has been changed, the “Save As…” button will become active.
F34: After pressing “Save As…”, enter a name for the vehicle and press “OK”
F35: Pressing “Cancel” will return to the custom vehicle data entry without saving the information
F36: Press “Close” to exit the custom vehicle data entry
E37: To delete a custom vehicle:
F38: Select a vehicle to delete
F39: Press “Delete Selected” – This is not reversible!
C40: e. | D40: Selecting a Street Segment
E41: To select a specific street segment, for the “Street Segment Level” analysis select the Street Name first.
E42: Select a specific Segment from the drop-down menu
E43: To view or modify the street inventory data
F44: Press “View/Enter Data”
F45: View or change information for surface, base, and subbase thickness and type
F46: View or change information for subgrade R-Value, year of last reconstruction, ADT, HCADT, and % Trucks, if available
F47: View or change information for current condition, PCI or SR values, if available.
F48: Press “Cancel” to exit without saving the changes, or “OK” to save and exit
F49: Select to “Use Database Values” or “Use Custom Values”
B51: 4. Network vs. Segment Level Analysis
C52: a. | D52: Choose the type of analysis to conduct – street segment level or Network Level
E53: Network level analysis applies the “Analysis Vehicles” to every street segment in the network, provided that they have enough information to conduct the analysis.
E54: Street Segment Level analysis applies the “Analysis Vehicles” to the single segment, but provides more detailed information in the analysis results
B56: 5. Importing a Street Network
C57: a. | D57: Press “Load/Update Street Network”
C58: b. | D58: Select the spreadsheet file to import from the File Open box
C59: c. | D59: If the import routine recognizes the spreadsheet file to contain pavement network information, it will open a window called “Heavy Vehicle Impacts Tool – Database Import”
C60: d. | D60: Select if the data has column headers or not
E61: The import routine assumes that the data starts on Row 1 if there are no headers, and Row 2 if there are headers
C62: e. | D62: Choose to preserve current / existing data
E63: If this is checked, the import routine will import only data for new roadway segments
C64: f. | D64: Align the columns with the required information. For example, if the first column is not “Segment Name” in the imported data, select the appropriate column in the drop down box.
C65: g. | D65: If the first column contains the segment name, but it is called by a different column heading, choose that header to associate it with “Segment Name”
E66: There is no way to check and make sure that the columns are lined up correctly. If the import causes errors, try importing again and selecting the proper columns
C67: h. | D67: Once all available columns are matched with a corresponding data type, press “Import”
C68: i. | D68: Press “Cancel at any time to return to the main tool without importing any data.
B70: 6. Conducting an Analysis
C71: a. | D71: Press “Analyze and Report”
C72: b. | D72: Depending on the type of analysis selected, the “Segment Analysis and Report” or “Network Analysis and Report” window will appear
C73: c. | D73: Computations are shown for “Consumed Life” and “Design”.
C74: d. | D74: “Consumed Life” reports (Street Segment Level)
E75: Additional ESALs per year
E76: Percent of life consumed over design period, %
E77: Total cost of consumed life, $/lane mile
E78: Total cost of consumed life, $/ESAL/lane mile
E79: Total cost of consumed life for the entire segment
C80: e. | D80: “Consumed Life” reports (Network Level)
E81: Additional ESALs per year
E82: Average percent of life consumed over design period, %
E83: Network cost of consumed life, $/lane mile
C84: f. | D84: “Design” reports (Street Segment Level)
E85: “Additional bituminous thickness that would be required at design to accommodate the additional heavy vehicles, inch”
E86: “Cost of additional bituminous at construction, $/sy”
E87: “Cost of additional thickness at construction” for the entire segment
C88: g. | D88: “Design” reports (Network Level)
E89: “Average additional bituminous thickness required, inch”
E90: “Network cost of additional bituminous at construction, $”
C91: h. | D91: From each report a detailed summary may be printed by pressing “Print Summary”
E92: In order to print to a specific printer, select the appropriate printer as the “default printer” in the computer’s settings prior to pressing “Print Summary”
B94: 7. Miscellaneous Items
C95: a. | D95: Load a Saved Analysis
E96: Analyses are saved within the spreadsheet, and not as individual files. There is no need to specify a location. All previously saved analyses appear in the drop-down box.
E97: Select one analysis in the drop-down box and press “OK”
E98: Press “Cancel” to quit without loading a new analysis
C99: b. | D99: Save Current Analysis
E100: By pressing “Save Current Analysis” the current analysis is updated in the spreadsheet records. No additional action is needed by the user.
C101: c. | D101: Save As New Analysis
E102: To save the current analysis to a different name, press “Save As New Analysis”
E103: The current analysis is saved as a new analysis with the specified name, and placed in the list of valid analyses that may be loaded at a later time. A new analysis name may be entered, or the current analysis may overwrite an existing analysis by selecting one from the drop-down box.
B105: 8. Technical Background
C106: a. | D106: Percent of Life Consumed Method
E107: The portion of the original design life (in ESALs) that is consumed by the development.
C108: b. | D108: Additional Asphalt Thickness Method
E109: The additional bituminous layer thickness that would have been required at design, using the GE method, as a result of the additional heavy vehicles.

Sheet UserSettings (hidden)
E1: Name | F1: FALSE | AG1: Current Segment Analysis Settings | AJ1: Data to Use (Original = TRUE) | AK1: FALSE | AO1: If SegmentID = 0 it is a "network analysis" | CO1: 12 | CR1: 2 | CS1: Number of Rows in file: | CT1: 1169 | CV1: StartRow | CW1: 2 | DF1: List of all segments with complete data | DQ1: TEMP-list of custom data to save
E2: TRUE=Network | AJ2: Segment Info | AK2: Original | AO2: NumSavedAnalyses | AP2: 2 | CS2: Data import Section | DF2: segment id | DK2: List of all segments with incomplete data | DR2: 1 = need to save
E3: FALSE=Segment | AO3: Saved Analyses | AP3: Analysis Name | AQ3: Analysis Type (F=segment, T=network) | AR3: PMS Info (T=database F=modified) | AS3: Segment ID | AT3: Final PSI without | AU3: Final PSI with | AV3: Time Frame for Truck Entry | AW3: Type 1 | AX3: Type 2 | AY3: Type 3 | AZ3: Type 4 | BA3: Type 5 | BB3: Type 6 | BC3: Type 7 | BD3: Type 8 | BE3: Type 9 | BF3: NumPerPeriod1 | BG3: NumPerPeriod2 | BH3: NumPerPeriod3 | BI3: NumPerPeriod4 | BJ3: NumPerPeriod5 | BK3: NumPerPeriod6 | BL3: NumPerPeriod7 | BM3: NumPerPeriod8 | BN3: NumPerPeriod9 | BO3: Full1 | BP3: Full2 | BQ3: Full3 | BR3: Full4 | BS3: Full5 | BT3: Full6 | BU3: Full7 | BV3: Full8 | BW3: Full9 | CO3: H:\FRID\N15108348\Pavement Rating\Fridley Pavement\ESAL Calculation Trial.xls | CS3: Last imported file (attemped) | CT3: C:\WJW\Projects\02-10-006-EffectOfGarbageHaulers\SampleData.xlsx | DF3: 1 | DQ3: ADT | DY3: PCI-Date Regression
AO4: 1 | AP4: New Analysis | AQ4: FALSE | AR4: TRUE | AS4: 2 | AT4: 4.186376572 | AU4: 4.184555531 | AV4: Week | AW4: G1 - Front Load | AX4: R1 - Recycle | AY4: G2 - Front Load | BF4: 6 | BG4: 3 | BH4: 4 | BO4: TRUE | BP4: TRUE | BQ4: TRUE | BR4: TRUE | BS4: TRUE | BT4: TRUE | BU4: TRUE | BV4: TRUE | BW4: TRUE | CJ4: Default Values | CL4: Box Number | CM4: columns in imported sheet | CQ4: Column Headers from import file | CR4: User Selected | CS4: Load into Form | CU4: No Column Headers | CV4: Default Fields | CX4: Destination Columns | CY4: Box Number | DF4: 2 | DQ4: HCADT
E5: Use Database Pavement Information | F5: TRUE | AO5: 2 | AP5: NewAnalysis2 | AQ5: TRUE | AR5: TRUE | AS5: 3 | AT5: 2.548018694 | AU5: 2.438661575 | AV5: Week | AW5: W5 - Waste - Side Load | BF5: 4 | BP5: TRUE | BQ5: TRUE | BR5: TRUE | BS5: TRUE | BT5: TRUE | BU5: TRUE | BV5: TRUE | BW5: TRUE | CI5: Surface Thickness | CJ5: 3 | CL5: 1 | CM5: 1 | CQ5: Segment Name | CR5: 1 | CS5: Name | CU5: Column 1 | CV5: Name | CX5: 2 | CY5: 1 | DF5: 3 | DQ5: SurfType
E6: TRUE=Use database pavement information | CI6: Base Thickness | CJ6: 8 | CL6: 2 | CM6: 2 | CQ6: From | CR6: 2 | CS6: From | CU6: Column 2 | CV6: From | CX6: 3 | CY6: 2 | DF6: 4 | DQ6: SurfThix | DZ6: PCI | EA6: PCI-date | EB6: PCI-Date-Serial Number | EE6: Age | EF6: Modeled PCI | EH6: (act-model)^2
E7: FALSE=Use custom values (load them if they already exist) | CI7: Subbase Thickness | CJ7: 0 | CL7: 3 | CM7: 3 | CQ7: To | CR7: 3 | CS7: To | CU7: Column 3 | CV7: To | CX7: 4 | CY7: 3 | DF7: 5 | DQ7: BaseType | DZ7: 98 | EA7: 2001-05-08 | EB7: =EA7 -> 2001-05-08 | EE7: =(EB7-$EB$11)/365.25 -> 1.771389459 | EF7: =IF(EE7<>"",$EA$15+$EA$16*EXP(-(($EA$17/EE7)^$EA$18)),NA()) -> 97.99994744 | EH7: =(DZ7-EF7)^2 -> 2.762083476e-09
CI8: R value | CJ8: 10 | CL8: 4 | CM8: 4 | CQ8: ADT | CR8: 4 | CS8: ADT | CU8: Column 4 | CV8: ADT | CX8: 6 | CY8: 4 | DF8: 6 | DQ8: BaseThix | DZ8: 86 | EA8: 2009-04-13 | EB8: =EA8 -> 2009-04-13 | EE8: =(EB8-$EB$11)/365.25 -> 9.70294319 | EF8: 85.99996817 | EH8: =(DZ8-EF8)^2 -> 1.013250449e-09
E9: Automatically load last used analysis? | F9: TRUE | CL9: 5 | CM9: 5 | CQ9: HCADT | CR9: 5 | CS9: HCADT | CU9: Column 5 | CV9: HCADT | CX9: 7 | CY9: 5 | DF9: 7 | DQ9: SubbaseType | DZ9: 64 | EA9: 2012-07-24 | EB9: =EA9 -> 2012-07-24 | EE9: 12.98288843 | EF9: =IF(EE9<>"",$EA$15+$EA$16*EXP(-(($EA$17/EE9)^$EA$18)),NA()) -> 64.00004737 | EH9: =(DZ9-EF9)^2 -> 2.243729971e-09
E10: Use Custom PCI Curve? | F10: FALSE | CL10: 6 | CM10: 6 | CQ10: Surface Type | CR10: 8 | CS10: Surface Type | CU10: Column 6 | CV10: Surface Type | CX10: 8 | CY10: 6 | DF10: 8 | DQ10: SubbaseThix
E11: Current Analysis Name | F11: NewAnalysis2 | AJ11: =COUNTA(AJ14:AJ100) -> 27 | CL11: 7 | CM11: 7 | CQ11: Surface Thickness | CR11: 9 | CS11: Surface Thickness | CU11: Column 7 | CV11: Surf Thick | CX11: 9 | CY11: 7 | DF11: 9 | DQ11: Subgrade R | DZ11: Last Recon | EA11: 1999 | EB11: =TEXT("7/31/"&EA11,"0") -> 36372 | EC11: (31 July of reconstruct year) | EG11: sum | EH11: =SUM(EH7:EH9) -> 6.019063896e-09
E12: Current Analysis Number | F12: 2 | AG12: Include in lists? | AH12: Truck Label List | AJ12: Truck label list for comboboxes | CL12: 8 | CM12: 8 | CQ12: Base Type | CR12: 10 | CS12: Base Type | CU12: Column 8 | CV12: Base Type | CX12: 10 | CY12: 8 | DF12: 10 | DQ12: LastRecon
AG13: 1=yes, 0=no | AM13: Bus | CL13: 9 | CM13: 9 | CQ13: Base Thickness | CR13: 11 | CS13: Base Thickness | CU13: Column 9 | CV13: Base Thick | CX13: 11 | CY13: 9 | DF13: 11 | DQ13: PctTrucks | DY13: Default Factors
B14: Cost and other Top Level Info | AB14: Time Frames | AG14: 1 | AH14: B1 - City Bus | AJ14: B1 - City Bus | AM14: Delivery | CL14: 10 | CM14: 10 | CQ14: Subbase Type | CR14: 12 | CS14: Subbase Type | CU14: Column 10 | CV14: Subbase Type | CX14: 12 | CY14: 10 | DF14: 12 | DQ14: PCI1 | DZ14: Regression Factors
F15: Prepared by | G15: City Engineer | AB15: Day | AG15: 1 | AH15: B2 - Short School Bus | AJ15: B2 - Short School Bus | AM15: Grain | CL15: 11 | CM15: 11 | CQ15: Subbase Thickness | CR15: 13 | CS15: Subbase Thickness | CU15: Column 11 | CV15: Subbase Thick | CX15: 13 | CY15: 11 | DF15: 13 | DQ15: PCI2 | DZ15: a | EA15: 97.99994744
AB16: Week | AG16: 1 | AH16: B3 - Long School Bus | AJ16: B3 - Long School Bus | AM16: Hauling | CL16: 12 | CM16: 12 | CQ16: Subgrade R Value | CR16: 6 | CS16: Subgrade R Value | CU16: Column 12 | CV16: R Value | CX16: 14 | CY16: 12 | DQ16: PCI3 | DZ16: b | EA16: -317.2786565
F17: Cost of pavement surface reconstruction, $/lane mile | G17: 100000 | AB17: Month | AG17: 1 | AH17: D1 - 2 Axle Delivery | AJ17: C1 - Front Load | AM17: Waste/Recycling | CL17: 13 | CM17: 13 | CQ17: Percent Trucks | CR17: 14 | CS17: Recent PCI | CU17: Column 13 | CV17: Percent Trucks | CX17: 18 | CY17: 13 | DQ17: PCIdate1 | DZ17: c | EA17: 23.92645592
F18: Cost of overlay, $/sy/inch | G18: 4 | AB18: Season | AG18: 1 | AH18: D2 - 5 Axle Semi | AJ18: C4 - Wind Turbine Truck | CL18: 14 | CM18: 14 | CQ18: Yr of Last Recon | CR18: 15 | CS18: Recent SR | CU18: Column 14 | CV18: Year of Last Reconstruction | CX18: 17 | CY18: 14 | DQ18: PCIdate2 | DZ18: d | EA18: 1.314356645
AB19: Year | AG19: 1 | AH19: D3 - 3 Axle Semi + 2 Axle Trailer | AJ19: D1 - 2 Axle Delivery | CL19: 15 | CM19: 15 | CQ19: Segment Width | CR19: 7 | CS19: Year of Last Reconstruction | CU19: Column 15 | CV19: Segment Width | CX19: 19 | CY19: 15 | DQ19: PCIdate3
AG20: 1 | AH20: D4 - 4 Axle Semi + 2 Axle Trailer | AJ20: D2 - 5 Axle Semi | CL20: 16 | CM20: 16 | CQ20: Segment Length | CR20: 16 | CS20: Percent Trucks | CU20: Column 16 | CV20: Segment Length | CX20: 20 | CY20: 16
F21: Minimum overlay thickness, in | G21: 1.5 | AG21: 1 | AH21: G1 - Cattle Truck | AJ21: D3 - 3 Axle Semi + 2 Axle Trailer | CL21: 17 | CM21: 17 | CQ21: 1st PCI | CR21: 17 | CS21: Segment Width | CU21: Column 17 | CV21: 1st PCI | CX21: 53 | CY21: 17 | DT21: Custom Default Curve | DY21: Custom Default Factors | EG21: 1 | EH21: =IF(EG21<>"",$EA$15+$EA$16*EXP(-(($EA$17/EG21)^$EA$18)),NA()) -> 97.99994744
F22: Overlay thickness increment, in | G22: 0.5 | AB22: Custom Trucks - Axle Types | AG22: 1 | AH22: G2 - 5 Axle Grain | AJ22: D4 - 4 Axle Semi + 2 Axle Trailer | CL22: 18 | CM22: 18 | CQ22: 1st PCI Date | CR22: 18 | CS22: Segment Length | CU22: Column 18 | CV22: 1st PCI Date | CX22: 54 | CY22: 18 | DU22: PCI | DV22: Age at PCI | DZ22: Regression Factors | EG22: 2 | EH22: =IF(EG22<>"",$EA$15+$EA$16*EXP(-(($EA$17/EG22)^$EA$18)),NA()) -> 97.99994744
AB23: 1 | AC23: Single, Single Axle | AG23: 1 | AH23: G3 - 3 Axle Grain | AJ23: G1 - Cattle Truck | CL23: 19 | CM23: 19 | CQ23: 2nd PCI | CU23: Column 19 | CV23: 2nd PCI | CX23: 55 | CY23: 19 | DU23: 95 | DV23: 1 | DZ23: a | EA23: 95.00146484 | EG23: 3 | EH23: 97.9998769
F24: Standard Pavement Design Life, yrs | G24: 20 | AB24: 2 | AC24: Dual, Single Axle | AG24: 1 | AH24: G4 - 3+ Axle Sugar Beet | AJ24: G2 - 5 Axle Grain | CL24: 20 | CM24: 20 | CQ24: 2nd PCI Date | CU24: Column 20 | CV24: 2nd PCI Date | CX24: 56 | CY24: 20 | DU24: 89 | DV24: 5 | DZ24: b | EA24: -198.4727325 | EG24: 4 | EH24: 97.99117413
F25: Growth Rate, % | G25: 1 | AB25: 3 | AC25: Dual, Tandem Axle | AG25: 1 | AH25: H1 - Concrete Truck | AJ25: G3 - 3 Axle Grain | CL25: 21 | CM25: 21 | CQ25: 3rd PCI | CU25: Column 21 | CV25: 3rd PCI | CX25: 57 | CY25: 21 | DU25: 70 | DV25: 10 | DZ25: c | EA25: 26.20493889 | EG25: 5 | EH25: 97.8735169
AB26: 4 | AC26: Dual Tandem with Tag Axle | AG26: 1 | AH26: H2 - Tanker Truck | AJ26: G4 - 3+ Axle Sugar Beet | CL26: 22 | CM26: 22 | CQ26: 3rd PCI Date | CU26: Column 22 | CV26: 3rd PCI Date | CX26: 58 | CY26: 22 | DZ26: d | EA26: 0.7559703588 | EG26: 6 | EH26: 97.32966975
G27: 0 | AB27: 5 | AC27: Tridem | AG27: 1 | AH27: H3 - 2 Axle Dump | AJ27: H1 - Concrete Truck | CQ27: Blank | EG27: 7 | EH27: 95.92555653
AG28: 1 | AH28: H4 - 3 Axle Dump | AJ28: H2 - Tanker Truck | CQ28: Blank | EG28: 8 | EH28: 93.33833754
AG29: 1 | AH29: H5 - 6 Axle Dump | AJ29: H3 - 2 Axle Dump | CQ29: Blank | EG29: 9 | EH29: 89.46082427
AG30: 1 | AH30: H6 - 6 Axle Aggregate | AJ30: H4 - 3 Axle Dump | EG30: 10 | EH30: 84.37138747
AG31: 1 | AH31: H7 - 7 Axle Aggregate | AJ31: H5 - 6 Axle Dump | EG31: 11 | EH31: 78.2573996
AG32: 1 | AH32: W1 - Waste - Front Load | AJ32: H6 - 6 Axle Aggregate | EG32: 12 | EH32: 71.34758137
D33: ESAL Calculations for Heavy Vehicles | AG33: 1 | AH33: W2 - Waste - Front Load | AJ33: H7 - 7 Axle Aggregate | EG33: 13 | EH33: 63.86844688
AG34: 1 | AH34: W3 - Waste - Rear Load | AJ34: W1 - Waste - Front Load | EG34: 14 | EH34: 56.02184724
D35: Terminal PSI | E35: 2 | AG35: 1 | AH35: W4 - Waste - Rear Load | AJ35: W2 - Waste - Front Load | EG35: 15 | EH35: 47.97646705
D36: Structural Number | E36: 3 | AG36: 1 | AH36: W5 - Waste - Side Load | AJ36: W3 - Waste - Rear Load | EG36: 16 | EH36: 39.86717404
AG37: 1 | AH37: W6 - Recycle | AJ37: W4 - Waste - Rear Load | EG37: 17 | EH37: 31.79816441
AG38: 1 | AH38: W7 - Recycle | AJ38: W5 - Waste - Side Load | EG38: 18 | EH38: 23.84753596
D39: G | E39: =LOG10((4.2-E35)/(4.2-1.5)) -> -0.08894108334 | AG39: 1 | AH39: C1 - Front Load | AJ39: W6 - Recycle | EG39: 19 | EH39: 16.07204053
D40: B18 | E40: =0.4+(0.081*19^3.23)/(E36+1)^5.19 -> 1.220668558 | AG40: 1 | AH40: C4 - Wind Turbine Truck | AJ40: W7 - Recycle | EG40: 20 | EH40: 8.511432445
AG41: 1 | EG41: 21 | EH41: 1.19219462
AG42: 1 | EG42: 22 | EH42: -5.869390289
EG43: 23 | EH43: -12.66477068
EG44: 24 | EH44: -19.1911742
EG45: 25 | EH45: -25.45008348
B46: Surface types for cboSurfaceType | EG46: 26 | EH46: -31.44605689
B47: Asphalt | EG47: 27 | EH47: -37.18582308
EG48: 28 | EH48: -42.67759043
EG49: 29 | EH49: -47.93052409
EG50: 30 | EH50: -52.95435275
B51: Base types for cboBaseType | F51: Subbase types for cboSubbaseType | EG51: 31 | EH51: -57.75907549
B52: Mn/DOT Class 5 | F52: Mn/DOT Class 3 | EG52: 32 | EH52: -62.35474557
B53: Mn/DOT Class 6 | F53: Mn/DOT Class 4 | EG53: 33 | EH53: -66.75131315
B54: Mn/DOT Class 7 | F54: Select Granular | EG54: 34 | EH54: -70.95851302
EG55: 35 | EH55: -74.98578652
B57: Cancel Import?
B58: FALSE
I100: AVAILABLE TRUCK TYPES
I102: FULL Trucks | Y102: NumTypes | Z102: =MAX(Y105:Y133) -> 25
I103: ESALs per truck | Y103: Number | Z103: Type | AA103: Truck type | AC103: Front Axle Wt | AD103: Rear Axle Wt2 | AE103: Rear Axle Type2 | AF103: Rear Axle Wt3 | AG103: Rear Axle Type3 | AH103: Rear Axle Wt4 | AI103: Rear Axle Type4 | AJ103: Rear Axle Wt5 | AK103: Rear Axle Type5 | AL103: FrontAxleLoad-1/2Full | AM103: AxleLoad2-1/2Full | AN103: AxleLoad3-1/2Full | AO103: AxleLoad4-1/2Full | AP103: AxleLoad5-1/2Full | AQ103: FrontAxleLoad-Empty | AR103: AxleLoad2-Empty | AS103: AxleLoad3-Empty | AT103: AxleLoad4-Empty | AU103: AxleLoad5-Empty | AV103: Front Tire Type | AW103: Rear Tire Type | AX103: Capacity, cy | AZ103: Picture File List | BF103: 1/2-full | BQ103: Empty
G104: List | H104: MnDOT Classification | I104: Bx-Front | J104: ESAL-Front | K104: Rear Axle Type2 | L104: Bx-Rear2 | M104: ESAL-Rear2 | N104: Rear Axle Type3 | O104: Bx-Rear3 | P104: ESAL-Rear3 | Q104: Rear Axle Type4 | R104: Bx-Rear4 | S104: ESAL-Rear4 | T104: Rear Axle Type5 | U104: Bx-Rear5 | V104: ESAL-Rear5 | W104: Truck ESAL | BF104: Bx-Front | BG104: Bx-2 | BH104: Bx-3 | BI104: Bx-4 | BJ104: Bx-5 | BK104: ESAL-front | BL104: ESAL-2 | BM104: ESAL-3 | BN104: ESAL-4 | BO104: ESAL-5 | BP104: Truck ESAL | BQ104: Bx-Front | BR104: Bx-2 | BS104: Bx-3 | BT104: Bx-4 | BU104: Bx-5 | BV104: ESAL-front | BW104: ESAL-2 | BX104: ESAL-3 | BY104: ESAL-4 | BZ104: ESAL-5 | CA104: Truck ESAL
G105: =Z105 & " - " & AA105 -> B1 - City Bus | H105: 4 | I105: =0.4+(0.081*(AC105/1000+1)^3.23)/(($E$36+1)^5.19*1^3.23) -> 0.8710870956 | J105: =1/(((18+1)/(AC105/1000+1))^4.79*10^($E$39/I105)/10^($E$39/$E$40)*1^4.33) -> 0.4696192795 | K105: =IF(ISERROR(SEARCH("Tandem",AE105)),IF(ISERROR(SEARCH("Single",AE105)),3,1),2) -> 1 | L105: =0.4+(0.081*(AD105/1000+K105)^3.23)/($E$36+1)^5.19 -> 2.145323654 | M105: =IF(AD105>0,1/(((18+1)/(AD105/1000+K105))^4.79*10^($E$39/L105)/10^($E$39/$E$40)*K105^4.33),0) -> 2.848246809 | N105: =IF(ISERROR(SEARCH("Tandem",AG105)),IF(ISERROR(SEARCH("Single",AG105)),3,1),2) -> 3 | O105: =0.4+(0.081*(AF105/1000+N105)^3.23)/($E$36+1)^5.19 -> 0.4021129797 | P105: =IF(AF105>0,1/(((18+1)/(AF105/1000+N105))^4.79*10^($E$39/O105)/10^($E$39/$E$40)*N105^4.33),0) -> 0 | Q105: =IF(ISERROR(SEARCH("Tandem",AI105)),IF(ISERROR(SEARCH("Single",AI105)),3,1),2) -> 3 | R105: =0.4+(0.081*(AH105/1000+Q105)^3.23)/($E$36+1)^5.19 -> 0.4021129797 | S105: =IF(AH105>0,1/(((18+1)/(AH105/1000+Q105))^4.79*10^($E$39/R105)/10^($E$39/$E$40)*Q105^4.33),0) -> 0 | T105: =IF(ISERROR(SEARCH("Tandem",AK105)),IF(ISERROR(SEARCH("Single",AK105)),3,1),2) -> 3 | U105: =0.4+(0.081*(AJ105/1000+T105)^3.23)/($E$36+1)^5.19 -> 0.4021129797 | V105: =IF(AJ105>0,1/(((18+1)/(AJ105/1000+T105))^4.79*10^($E$39/U105)/10^($E$39/$E$40)*T105^4.33),0) -> 0 | W105: =J105+M105 -> 3.317866089 | Y105: 1 | Z105: B1 | AA105: City Bus | AC105: 15000 | AD105: 23000 | AE105: Dual, Single Axle | AL105: 10000 | AM105: 17500 | AQ105: 10000 | AR105: 12000 | AZ105: 2Ax-CityBus.jpg | BF105: =0.4+(0.081*(AL105/1000+1)^3.23)/(($E$36+1)^5.19*1^3.23) -> 0.5404403933 | BG105: =0.4+(0.081*(AM105/1000+K105)^3.23)/($E$36+1)^5.19 -> 1.152936493 | BH105: =0.4+(0.081*(AN105/1000+N105)^3.23)/($E$36+1)^5.19 -> 0.4021129797 | BI105: =0.4+(0.081*(AO105/1000+Q105)^3.23)/($E$36+1)^5.19 -> 0.4021129797 | BJ105: =0.4+(0.081*(AP105/1000+T105)^3.23)/($E$36+1)^5.19 -> 0.4021129797 | BK105: =1/(((18+1)/(AL105/1000+1))^4.79*10^($E$39/BF105)/10^($E$39/$E$40)*1^4.33) -> 0.09010525278 | BL105: =IF(AM105>0,1/(((18+1)/(AM105/1000+K105))^4.79*10^($E$39/BG105)/10^($E$39/$E$40)*K105^4.33),0) -> 0.8887985175 | BM105: =IF(AN105>0,1/(((18+1)/(AN105/1000+N105))^4.79*10^($E$39/BH105)/10^($E$39/$E$40)*N105^4.33),0) -> 0 | BN105: =IF(AO105>0,1/(((18+1)/(AO105/1000+Q105))^4.79*10^($E$39/BI105)/10^($E$39/$E$40)*Q105^4.33),0) -> 0 | BO105: =IF(AP105>0,1/(((18+1)/(AP105/1000+T105))^4.79*10^($E$39/BJ105)/10^($E$39/$E$40)*T105^4.33),0) -> 0 | BP105: =SUM(BK105:BO105) -> 0.9789037703 | BQ105: =0.4+(0.081*(AQ105/1000+1)^3.23)/(($E$36+1)^5.19*1^3.23) -> 0.5404403933 | BR105: =0.4+(0.081*(AR105/1000+K105)^3.23)/($E$36+1)^5.19 -> 0.6408966119 | BS105: =0.4+(0.081*(AS105/1000+N105)^3.23)/($E$36+1)^5.19 -> 0.4021129797 | BT105: =0.4+(0.081*(AT105/1000+Q105)^3.23)/($E$36+1)^5.19 -> 0.4021129797 | BU105: =0.4+(0.081*(AU105/1000+T105)^3.23)/($E$36+1)^5.19 -> 0.4021129797 | BV105: =1/(((18+1)/(AQ105/1000+1))^4.79*10^($E$39/BQ105)/10^($E$39/$E$40)*1^4.33) -> 0.09010525278 | BW105: =IF(AR105>0,1/(((18+1)/(AR105/1000+K105))^4.79*10^($E$39/BR105)/10^($E$39/$E$40)*K105^4.33),0) -> 0.1890045825 | BX105: =IF(AS105>0,1/(((18+1)/(AS105/1000+N105))^4.79*10^($E$39/BS105)/10^($E$39/$E$40)*N105^4.33),0) -> 0 | BY105: =IF(AT105>0,1/(((18+1)/(AT105/1000+Q105))^4.79*10^($E$39/BT105)/10^($E$39/$E$40)*Q105^4.33),0) -> 0 | BZ105: =IF(AU105>0,1/(((18+1)/(AU105/1000+T105))^4.79*10^($E$39/BU105)/10^($E$39/$E$40)*T105^4.33),0) -> 0 | CA105: =SUM(BV105:BZ105) -> 0.2791098352
G106: B2 - Short School Bus | H106: 4 | I106: 0.5404403933 | J106: 0.09010525278 | K106: 1 | L106: 1.368546665 | M106: 1.255540636 | N106: 3 | O106: 0.4021129797 | P106: 0 | Q106: 3 | R106: 0.4021129797 | S106: 0 | T106: 3 | U106: 0.4021129797 | V106: 0 | W106: 1.345645889 | Y106: 2 | Z106: B2 | AA106: Short School Bus | AC106: 10000 | AD106: 19000 | AE106: Dual, Single Axle | AL106: 8000 | AM106: 14500 | AQ106: 8000 | AR106: 10000 | AZ106: 2Ax-ShortSchoolBus.jpg | BF106: 0.4734508743 | BG106: 0.8251723847 | BH106: 0.4021129797 | BI106: 0.4021129797 | BJ106: 0.4021129797 | BK106: 0.03635685602 | BL106: 0.4086780749 | BM106: 0 | BN106: 0 | BO106: 0 | BP106: 0.4450349309 | BQ106: 0.4734508743 | BR106: 0.5404403933 | BS106: 0.4021129797 | BT106: 0.4021129797 | BU106: 0.4021129797 | BV106: 0.03635685602 | BW106: 0.09010525278 | BX106: 0 | BY106: 0 | BZ106: 0 | CA106: 0.1264621088
G107: B3 - Long School Bus | H107: 4 | I107: 0.5404403933 | J107: 0.09010525278 | K107: 1 | L107: 1.368546665 | M107: 1.255540636 | N107: 3 | O107: 0.4021129797 | P107: 0 | Q107: 3 | R107: 0.4021129797 | S107: 0 | T107: 3 | U107: 0.4021129797 | V107: 0 | W107: 1.345645889 | Y107: 3 | Z107: B3 | AA107: Long School Bus | AC107: 10000 | AD107: 19000 | AE107: Dual, Single Axle | AL107: 8000 | AM107: 14500 | AQ107: 8000 | AR107: 10000 | AZ107: 2Ax-LongSchoolBus.jpg | BF107: 0.4734508743 | BG107: 0.8251723847 | BH107: 0.4021129797 | BI107: 0.4021129797 | BJ107: 0.4021129797 | BK107: 0.03635685602 | BL107: 0.4086780749 | BM107: 0 | BN107: 0 | BO107: 0 | BP107: 0.4450349309 | BQ107: 0.4734508743 | BR107: 0.5404403933 | BS107: 0.4021129797 | BT107: 0.4021129797 | BU107: 0.4021129797 | BV107: 0.03635685602 | BW107: 0.09010525278 | BX107: 0 | BY107: 0 | BZ107: 0 | CA107: 0.1264621088
G108: D1 - 2 Axle Delivery | H108: 5 | I108: 0.6408966119 | J108: 0.1890045825 | K108: 1 | L108: 1.533866661 | M108: 1.560712686 | N108: 3 | O108: 0.4021129797 | P108: 0 | Q108: 3 | R108: 0.4021129797 | S108: 0 | T108: 3 | U108: 0.4021129797 | V108: 0 | W108: 1.749717268 | Y108: 4 | Z108: D1 | AA108: 2 Axle Delivery | AC108: 12000 | AD108: 20000 | AE108: Dual, Single Axle | AL108: 8000 | AM108: 15000 | AQ108: 8000 | AR108: 10000 | AZ108: 2Ax-Delivery.jpg | BF108: 0.4734508743 | BG108: 0.8710870956 | BH108: 0.4021129797 | BI108: 0.4021129797 | BJ108: 0.4021129797 | BK108: 0.03635685602 | BL108: 0.4696192795 | BM108: 0 | BN108: 0 | BO108: 0 | BP108: 0.5059761356 | BQ108: 0.4734508743 | BR108: 0.5404403933 | BS108: 0.4021129797 | BT108: 0.4021129797 | BU108: 0.4021129797 | BV108: 0.03635685602 | BW108: 0.09010525278 | BX108: 0 | BY108: 0 | BZ108: 0 | CA108: 0.1264621088
G109: D2 - 5 Axle Semi | H109: 9 | I109: =0.4+(0.081*(AC109/1000+1)^3.23)/(($E$36+1)^5.19*1^3.23) -> 0.6408966119 | J109: =1/(((18+1)/(AC109/1000+1))^4.79*10^($E$39/I109)/10^($E$39/$E$40)*1^4.33) -> 0.1890045825 | K109: 2 | L109: =0.4+(0.081*(AD109/1000+K109)^3.23)/($E$36+1)^5.19 -> 6.866223943 | M109: =IF(AD109>0,1/(((18+1)/(AD109/1000+K109))^4.79*10^($E$39/L109)/10^($E$39/$E$40)*K109^4.33),0) -> 0.9248901841 | N109: 2 | O109: =0.4+(0.081*(AF109/1000+N109)^3.23)/($E$36+1)^5.19 -> 6.866223943 | P109: =IF(AF109>0,1/(((18+1)/(AF109/1000+N109))^4.79*10^($E$39/O109)/10^($E$39/$E$40)*N109^4.33),0) -> 0.9248901841 | Q109: =IF(ISERROR(SEARCH("Tandem",AI109)),IF(ISERROR(SEARCH("Single",AI109)),3,1),2) -> 3 | R109: =0.4+(0.081*(AH109/1000+Q109)^3.23)/($E$36+1)^5.19 -> 0.4021129797 | S109: =IF(AH109>0,1/(((18+1)/(AH109/1000+Q109))^4.79*10^($E$39/R109)/10^($E$39/$E$40)*Q109^4.33),0) -> 0 | T109: =IF(ISERROR(SEARCH("Tandem",AK109)),IF(ISERROR(SEARCH("Single",AK109)),3,1),2) -> 3 | U109: =0.4+(0.081*(AJ109/1000+T109)^3.23)/($E$36+1)^5.19 -> 0.4021129797 | V109: =IF(AJ109>0,1/(((18+1)/(AJ109/1000+T109))^4.79*10^($E$39/U109)/10^($E$39/$E$40)*T109^4.33),0) -> 0 | W109: =J109+M109 -> 1.113894767 | Y109: 23 | Z109: D2 | AA109: 5 Axle Semi | AC109: 12000 | AD109: 34000 | AE109: Dual, Tandem Axle | AF109: 34000 | AG109: Dual, Tandem Axle | AL109: 10000 | AM109: 22000 | AN109: 22000 | AQ109: 10000 | AR109: 15000 | AS109: 15000 | AZ109: 5Ax-Semi.jpg | BF109: =0.4+(0.081*(AL109/1000+1)^3.23)/(($E$36+1)^5.19*1^3.23) -> 0.5404403933 | BG109: =0.4+(0.081*(AM109/1000+K109)^3.23)/($E$36+1)^5.19 -> 2.145323654 | BH109: =0.4+(0.081*(AN109/1000+N109)^3.23)/($E$36+1)^5.19 -> 2.145323654 | BI109: =0.4+(0.081*(AO109/1000+Q109)^3.23)/($E$36+1)^5.19 -> 0.4021129797 | BJ109: =0.4+(0.081*(AP109/1000+T109)^3.23)/($E$36+1)^5.19 -> 0.4021129797 | BK109: =1/(((18+1)/(AL109/1000+1))^4.79*10^($E$39/BF109)/10^($E$39/$E$40)*1^4.33) -> 0.09010525278 | BL109: =IF(AM109>0,1/(((18+1)/(AM109/1000+K109))^4.79*10^($E$39/BG109)/10^($E$39/$E$40)*K109^4.33),0) -> 0.1416177657 | BM109: =IF(AN109>0,1/(((18+1)/(AN109/1000+N109))^4.79*10^($E$39/BH109)/10^($E$39/$E$40)*N109^4.33),0) -> 0.1416177657 | BN109: =IF(AO109>0,1/(((18+1)/(AO109/1000+Q109))^4.79*10^($E$39/BI109)/10^($E$39/$E$40)*Q109^4.33),0) -> 0 | BO109: =IF(AP109>0,1/(((18+1)/(AP109/1000+T109))^4.79*10^($E$39/BJ109)/10^($E$39/$E$40)*T109^4.33),0) -> 0 | BP109: =SUM(BK109:BO109) -> 0.3733407842 | BQ109: =0.4+(0.081*(AQ109/1000+1)^3.23)/(($E$36+1)^5.19*1^3.23) -> 0.5404403933 | BR109: =0.4+(0.081*(AR109/1000+K109)^3.23)/($E$36+1)^5.19 -> 0.9729855635 | BS109: =0.4+(0.081*(AS109/1000+N109)^3.23)/($E$36+1)^5.19 -> 0.9729855635 | BT109: =0.4+(0.081*(AT109/1000+Q109)^3.23)/($E$36+1)^5.19 -> 0.4021129797 | BU109: =0.4+(0.081*(AU109/1000+T109)^3.23)/($E$36+1)^5.19 -> 0.4021129797 | BV109: =1/(((18+1)/(AQ109/1000+1))^4.79*10^($E$39/BQ109)/10^($E$39/$E$40)*1^4.33) -> 0.09010525278 | BW109: =IF(AR109>0,1/(((18+1)/(AR109/1000+K109))^4.79*10^($E$39/BR109)/10^($E$39/$E$40)*K109^4.33),0) -> 0.03045850556 | BX109: =IF(AS109>0,1/(((18+1)/(AS109/1000+N109))^4.79*10^($E$39/BS109)/10^($E$39/$E$40)*N109^4.33),0) -> 0.03045850556 | BY109: =IF(AT109>0,1/(((18+1)/(AT109/1000+Q109))^4.79*10^($E$39/BT109)/10^($E$39/$E$40)*Q109^4.33),0) -> 0 | BZ109: =IF(AU109>0,1/(((18+1)/(AU109/1000+T109))^4.79*10^($E$39/BU109)/10^($E$39/$E$40)*T109^4.33),0) -> 0 | CA109: =SUM(BV109:BZ109) -> 0.1510222639
G110: D3 - 3 Axle Semi + 2 Axle Trailer | H110: 11 | I110: =0.4+(0.081*(AC110/1000+1)^3.23)/(($E$36+1)^5.19*1^3.23) -> 0.6408966119 | J110: =1/(((18+1)/(AC110/1000+1))^4.79*10^($E$39/I110)/10^($E$39/$E$40)*1^4.33) -> 0.1890045825 | K110: 1 | L110: =0.4+(0.081*(AD110/1000+K110)^3.23)/($E$36+1)^5.19 -> 1.533866661 | M110: =IF(AD110>0,1/(((18+1)/(AD110/1000+K110))^4.79*10^($E$39/L110)/10^($E$39/$E$40)*K110^4.33),0) -> 1.560712686 | N110: 1 | O110: =0.4+(0.081*(AF110/1000+N110)^3.23)/($E$36+1)^5.19 -> 1.533866661 | P110: =IF(AF110>0,1/(((18+1)/(AF110/1000+N110))^4.79*10^($E$39/O110)/10^($E$39/$E$40)*N110^4.33),0) -> 1.560712686 | Q110: 1 | R110: =0.4+(0.081*(AH110/1000+Q110)^3.23)/($E$36+1)^5.19 -> 1.533866661 | S110: =IF(AH110>0,1/(((18+1)/(AH110/1000+Q110))^4.79*10^($E$39/R110)/10^($E$39/$E$40)*Q110^4.33),0) -> 1.560712686 | T110: 1 | U110: =0.4+(0.081*(AJ110/1000+T110)^3.23)/($E$36+1)^5.19 -> 1.533866661 | V110: =IF(AJ110>0,1/(((18+1)/(AJ110/1000+T110))^4.79*10^($E$39/U110)/10^($E$39/$E$40)*T110^4.33),0) -> 1.560712686 | W110: =J110+M110 -> 1.749717268 | Y110: 24 | Z110: D3 | AA110: 3 Axle Semi + 2 Axle Trailer | AC110: 12000 | AD110: 20000 | AE110: Dual, Single Axle | AF110: 20000 | AG110: Dual, Single Axle | AH110: 20000 | AI110: Dual, Single Axle | AJ110: 20000 | AK110: Dual, Single Axle | AL110: 11000 | AM110: 13000 | AN110: 13000 | AO110: 13000 | AP110: 13000 | AQ110: 10000 | AR110: 8000 | AS110: 8000 | AT110: 8000 | AU110: 8000 | AZ110: 3Ax-Semi+2AxTrailer.jpg | BF110: =0.4+(0.081*(AL110/1000+1)^3.23)/(($E$36+1)^5.19*1^3.23) -> 0.5860154806 | BG110: =0.4+(0.081*(AM110/1000+K110)^3.23)/($E$36+1)^5.19 -> 0.7060463604 | BH110: =0.4+(0.081*(AN110/1000+N110)^3.23)/($E$36+1)^5.19 -> 0.7060463604 | BI110: =0.4+(0.081*(AO110/1000+Q110)^3.23)/($E$36+1)^5.19 -> 0.7060463604 | BJ110: =0.4+(0.081*(AP110/1000+T110)^3.23)/($E$36+1)^5.19 -> 0.7060463604 | BK110: =1/(((18+1)/(AL110/1000+1))^4.79*10^($E$39/BF110)/10^($E$39/$E$40)*1^4.33) -> 0.132726733 | BL110: =IF(AM110>0,1/(((18+1)/(AM110/1000+K110))^4.79*10^($E$39/BG110)/10^($E$39/$E$40)*K110^4.33),0) -> 0.2617167648 | BM110: =IF(AN110>0,1/(((18+1)/(AN110/1000+N110))^4.79*10^($E$39/BH110)/10^($E$39/$E$40)*N110^4.33),0) -> 0.2617167648 | BN110: =IF(AO110>0,1/(((18+1)/(AO110/1000+Q110))^4.79*10^($E$39/BI110)/10^($E$39/$E$40)*Q110^4.33),0) -> 0.2617167648 | BO110: =IF(AP110>0,1/(((18+1)/(AP110/1000+T110))^4.79*10^($E$39/BJ110)/10^($E$39/$E$40)*T110^4.33),0) -> 0.2617167648 | BP110: =SUM(BK110:BO110) -> 1.179593792 | BQ110: =0.4+(0.081*(AQ110/1000+1)^3.23)/(($E$36+1)^5.19*1^3.23) -> 0.5404403933 | BR110: =0.4+(0.081*(AR110/1000+K110)^3.23)/($E$36+1)^5.19 -> 0.4734508743 | BS110: =0.4+(0.081*(AS110/1000+N110)^3.23)/($E$36+1)^5.19 -> 0.4734508743 | BT110: =0.4+(0.081*(AT110/1000+Q110)^3.23)/($E$36+1)^5.19 -> 0.4734508743 | BU110: =0.4+(0.081*(AU110/1000+T110)^3.23)/($E$36+1)^5.19 -> 0.4734508743 | BV110: =1/(((18+1)/(AQ110/1000+1))^4.79*10^($E$39/BQ110)/10^($E$39/$E$40)*1^4.33) -> 0.09010525278 | BW110: =IF(AR110>0,1/(((18+1)/(AR110/1000+K110))^4.79*10^($E$39/BR110)/10^($E$39/$E$40)*K110^4.33),0) -> 0.03635685602 | BX110: =IF(AS110>0,1/(((18+1)/(AS110/1000+N110))^4.79*10^($E$39/BS110)/10^($E$39/$E$40)*N110^4.33),0) -> 0.03635685602 | BY110: =IF(AT110>0,1/(((18+1)/(AT110/1000+Q110))^4.79*10^($E$39/BT110)/10^($E$39/$E$40)*Q110^4.33),0) -> 0.03635685602 | BZ110: =IF(AU110>0,1/(((18+1)/(AU110/1000+T110))^4.79*10^($E$39/BU110)/10^($E$39/$E$40)*T110^4.33),0) -> 0.03635685602 | CA110: =SUM(BV110:BZ110) -> 0.2355326769
G111: D4 - 4 Axle Semi + 2 Axle Trailer | H111: 12 | I111: =0.4+(0.081*(AC111/1000+1)^3.23)/(($E$36+1)^5.19*1^3.23) -> 0.6408966119 | J111: =1/(((18+1)/(AC111/1000+1))^4.79*10^($E$39/I111)/10^($E$39/$E$40)*1^4.33) -> 0.1890045825 | K111: 2 | L111: =0.4+(0.081*(AD111/1000+K111)^3.23)/($E$36+1)^5.19 -> 1.717707212 | M111: =IF(AD111>0,1/(((18+1)/(AD111/1000+K111))^4.79*10^($E$39/L111)/10^($E$39/$E$40)*K111^4.33),0) -> 0.09559416124 | N111: 1 | O111: =0.4+(0.081*(AF111/1000+N111)^3.23)/($E$36+1)^5.19 -> 1.533866661 | P111: =IF(AF111>0,1/(((18+1)/(AF111/1000+N111))^4.79*10^($E$39/O111)/10^($E$39/$E$40)*N111^4.33),0) -> 1.560712686 | Q111: 1 | R111: =0.4+(0.081*(AH111/1000+Q111)^3.23)/($E$36+1)^5.19 -> 1.533866661 | S111: =IF(AH111>0,1/(((18+1)/(AH111/1000+Q111))^4.79*10^($E$39/R111)/10^($E$39/$E$40)*Q111^4.33),0) -> 1.560712686 | T111: 1 | U111: =0.4+(0.081*(AJ111/1000+T111)^3.23)/($E$36+1)^5.19 -> 1.533866661 | V111: =IF(AJ111>0,1/(((18+1)/(AJ111/1000+T111))^4.79*10^($E$39/U111)/10^($E$39/$E$40)*T111^4.33),0) -> 1.560712686 | W111: =J111+M111 -> 0.2845987437 | Y111: 25 | Z111: D4 | AA111: 4 Axle Semi + 2 Axle Trailer | AC111: 12000 | AD111: 20000 | AE111: Dual, Tandem Axle | AF111: 20000 | AG111: Dual, Single Axle | AH111: 20000 | AI111: Dual, Single Axle | AJ111: 20000 | AK111: Dual, Single Axle | AL111: 11000 | AM111: 13000 | AN111: 13000 | AO111: 13000 | AP111: 13000 | AQ111: 10000 | AR111: 8000 | AS111: 8000 | AT111: 8000 | AU111: 8000 | AZ111: 4Ax-Semi+2AxTrailer.jpg | BF111: =0.4+(0.081*(AL111/1000+1)^3.23)/(($E$36+1)^5.19*1^3.23) -> 0.5860154806 | BG111: =0.4+(0.081*(AM111/1000+K111)^3.23)/($E$36+1)^5.19 -> 0.7824445097 | BH111: =0.4+(0.081*(AN111/1000+N111)^3.23)/($E$36+1)^5.19 -> 0.7060463604 | BI111: =0.4+(0.081*(AO111/1000+Q111)^3.23)/($E$36+1)^5.19 -> 0.7060463604 | BJ111: =0.4+(0.081*(AP111/1000+T111)^3.23)/($E$36+1)^5.19 -> 0.7060463604 | BK111: =1/(((18+1)/(AL111/1000+1))^4.79*10^($E$39/BF111)/10^($E$39/$E$40)*1^4.33) -> 0.132726733 | BL111: =IF(AM111>0,1/(((18+1)/(AM111/1000+K111))^4.79*10^($E$39/BG111)/10^($E$39/$E$40)*K111^4.33),0) -> 0.01760336482 | BM111: =IF(AN111>0,1/(((18+1)/(AN111/1000+N111))^4.79*10^($E$39/BH111)/10^($E$39/$E$40)*N111^4.33),0) -> 0.2617167648 | BN111: =IF(AO111>0,1/(((18+1)/(AO111/1000+Q111))^4.79*10^($E$39/BI111)/10^($E$39/$E$40)*Q111^4.33),0) -> 0.2617167648 | BO111: =IF(AP111>0,1/(((18+1)/(AP111/1000+T111))^4.79*10^($E$39/BJ111)/10^($E$39/$E$40)*T111^4.33),0) -> 0.2617167648 | BP111: =SUM(BK111:BO111) -> 0.9354803923 | BQ111: =0.4+(0.081*(AQ111/1000+1)^3.23)/(($E$36+1)^5.19*1^3.23) -> 0.5404403933 | BR111: =0.4+(0.081*(AR111/1000+K111)^3.23)/($E$36+1)^5.19 -> 0.5032270851 | BS111: =0.4+(0.081*(AS111/1000+N111)^3.23)/($E$36+1)^5.19 -> 0.4734508743 | BT111: =0.4+(0.081*(AT111/1000+Q111)^3.23)/($E$36+1)^5.19 -> 0.4734508743 | BU111: =0.4+(0.081*(AU111/1000+T111)^3.23)/($E$36+1)^5.19 -> 0.4734508743 | BV111: =1/(((18+1)/(AQ111/1000+1))^4.79*10^($E$39/BQ111)/10^($E$39/$E$40)*1^4.33) -> 0.09010525278 | BW111: =IF(AR111>0,1/(((18+1)/(AR111/1000+K111))^4.79*10^($E$39/BR111)/10^($E$39/$E$40)*K111^4.33),0) -> 0.002918698392 | BX111: =IF(AS111>0,1/(((18+1)/(AS111/1000+N111))^4.79*10^($E$39/BS111)/10^($E$39/$E$40)*N111^4.33),0) -> 0.03635685602 | BY111: =IF(AT111>0,1/(((18+1)/(AT111/1000+Q111))^4.79*10^($E$39/BT111)/10^($E$39/$E$40)*Q111^4.33),0) -> 0.03635685602 | BZ111: =IF(AU111>0,1/(((18+1)/(AU111/1000+T111))^4.79*10^($E$39/BU111)/10^($E$39/$E$40)*T111^4.33),0) -> 0.03635685602 | CA111: =SUM(BV111:BZ111) -> 0.2020945192
G112: =Z112 & " - " & AA112 -> G1 - Cattle Truck | H112: 9 | I112: =0.4+(0.081*(AC112/1000+1)^3.23)/(($E$36+1)^5.19*1^3.23) -> 0.6408966119 | J112: =1/(((18+1)/(AC112/1000+1))^4.79*10^($E$39/I112)/10^($E$39/$E$40)*1^4.33) -> 0.1890045825 | K112: =IF(ISERROR(SEARCH("Tandem",AE112)),IF(ISERROR(SEARCH("Single",AE112)),3,1),2) -> 2 | L112: =0.4+(0.081*(AD112/1000+K112)^3.23)/($E$36+1)^5.19 -> 6.866223943 | M112: =IF(AD112>0,1/(((18+1)/(AD112/1000+K112))^4.79*10^($E$39/L112)/10^($E$39/$E$40)*K112^4.33),0) -> 0.9248901841 | N112: =IF(ISERROR(SEARCH("Tandem",AG112)),IF(ISERROR(SEARCH("Single",AG112)),3,1),2) -> 2 | O112: =0.4+(0.081*(AF112/1000+N112)^3.23)/($E$36+1)^5.19 -> 6.866223943 | P112: =IF(AF112>0,1/(((18+1)/(AF112/1000+N112))^4.79*10^($E$39/O112)/10^($E$39/$E$40)*N112^4.33),0) -> 0.9248901841 | Q112: =IF(ISERROR(SEARCH("Tandem",AI112)),IF(ISERROR(SEARCH("Single",AI112)),3,1),2) -> 3 | R112: =0.4+(0.081*(AH112/1000+Q112)^3.23)/($E$36+1)^5.19 -> 0.4021129797 | S112: =IF(AH112>0,1/(((18+1)/(AH112/1000+Q112))^4.79*10^($E$39/R112)/10^($E$39/$E$40)*Q112^4.33),0) -> 0 | T112: =IF(ISERROR(SEARCH("Tandem",AK112)),IF(ISERROR(SEARCH("Single",AK112)),3,1),2) -> 3 | U112: =0.4+(0.081*(AJ112/1000+T112)^3.23)/($E$36+1)^5.19 -> 0.4021129797 | V112: =IF(AJ112>0,1/(((18+1)/(AJ112/1000+T112))^4.79*10^($E$39/U112)/10^($E$39/$E$40)*T112^4.33),0) -> 0 | W112: =J112+M112 -> 1.113894767 | Y112: 5 | Z112: G1 | AA112: Cattle Truck | AC112: 12000 | AD112: 34000 | AE112: Dual, Tandem Axle | AF112: 34000 | AG112: Dual, Tandem Axle | AL112: 12000 | AM112: 23000 | AN112: 23000 | AQ112: 12000 | AR112: 12000 | AS112: 12000 | AZ112: 5Ax-CattleTruck.jpg | BF112: =0.4+(0.081*(AL112/1000+1)^3.23)/(($E$36+1)^5.19*1^3.23) -> 0.6408966119 | BG112: =0.4+(0.081*(AM112/1000+K112)^3.23)/($E$36+1)^5.19 -> 2.391314664 | BH112: =0.4+(0.081*(AN112/1000+N112)^3.23)/($E$36+1)^5.19 -> 2.391314664 | BI112: =0.4+(0.081*(AO112/1000+Q112)^3.23)/($E$36+1)^5.19 -> 0.4021129797 | BJ112: =0.4+(0.081*(AP112/1000+T112)^3.23)/($E$36+1)^5.19 -> 0.4021129797 | BK112: =1/(((18+1)/(AL112/1000+1))^4.79*10^($E$39/BF112)/10^($E$39/$E$40)*1^4.33) -> 0.1890045825 | BL112: =IF(AM112>0,1/(((18+1)/(AM112/1000+K112))^4.79*10^($E$39/BG112)/10^($E$39/$E$40)*K112^4.33),0) -> 0.1705194003 | BM112: =IF(AN112>0,1/(((18+1)/(AN112/1000+N112))^4.79*10^($E$39/BH112)/10^($E$39/$E$40)*N112^4.33),0) -> 0.1705194003 | BN112: =IF(AO112>0,1/(((18+1)/(AO112/1000+Q112))^4.79*10^($E$39/BI112)/10^($E$39/$E$40)*Q112^4.33),0) -> 0 | BO112: =IF(AP112>0,1/(((18+1)/(AP112/1000+T112))^4.79*10^($E$39/BJ112)/10^($E$39/$E$40)*T112^4.33),0) -> 0 | BP112: =SUM(BK112:BO112) -> 0.530043383 | BQ112: =0.4+(0.081*(AQ112/1000+1)^3.23)/(($E$36+1)^5.19*1^3.23) -> 0.6408966119 | BR112: =0.4+(0.081*(AR112/1000+K112)^3.23)/($E$36+1)^5.19 -> 0.7060463604 | BS112: =0.4+(0.081*(AS112/1000+N112)^3.23)/($E$36+1)^5.19 -> 0.7060463604 | BT112: =0.4+(0.081*(AT112/1000+Q112)^3.23)/($E$36+1)^5.19 -> 0.4021129797 | BU112: =0.4+(0.081*(AU112/1000+T112)^3.23)/($E$36+1)^5.19 -> 0.4021129797 | BV112: =1/(((18+1)/(AQ112/1000+1))^4.79*10^($E$39/BQ112)/10^($E$39/$E$40)*1^4.33) -> 0.1890045825 | BW112: =IF(AR112>0,1/(((18+1)/(AR112/1000+K112))^4.79*10^($E$39/BR112)/10^($E$39/$E$40)*K112^4.33),0) -> 0.01301282718 | BX112: =IF(AS112>0,1/(((18+1)/(AS112/1000+N112))^4.79*10^($E$39/BS112)/10^($E$39/$E$40)*N112^4.33),0) -> 0.01301282718 | BY112: =IF(AT112>0,1/(((18+1)/(AT112/1000+Q112))^4.79*10^($E$39/BT112)/10^($E$39/$E$40)*Q112^4.33),0) -> 0 | BZ112: =IF(AU112>0,1/(((18+1)/(AU112/1000+T112))^4.79*10^($E$39/BU112)/10^($E$39/$E$40)*T112^4.33),0) -> 0 | CA112: =SUM(BV112:BZ112) -> 0.2150302368
G113: G2 - 5 Axle Grain | H113: 9 | I113: =0.4+(0.081*(AC113/1000+1)^3.23)/(($E$36+1)^5.19*1^3.23) -> 0.6408966119 | J113: =1/(((18+1)/(AC113/1000+1))^4.79*10^($E$39/I113)/10^($E$39/$E$40)*1^4.33) -> 0.1890045825 | K113: 2 | L113: =0.4+(0.081*(AD113/1000+K113)^3.23)/($E$36+1)^5.19 -> 6.866223943 | M113: =IF(AD113>0,1/(((18+1)/(AD113/1000+K113))^4.79*10^($E$39/L113)/10^($E$39/$E$40)*K113^4.33),0) -> 0.9248901841 | N113: 2 | O113: =0.4+(0.081*(AF113/1000+N113)^3.23)/($E$36+1)^5.19 -> 6.866223943 | P113: =IF(AF113>0,1/(((18+1)/(AF113/1000+N113))^4.79*10^($E$39/O113)/10^($E$39/$E$40)*N113^4.33),0) -> 0.9248901841 | Q113: 3 | R113: =0.4+(0.081*(AH113/1000+Q113)^3.23)/($E$36+1)^5.19 -> 0.4021129797 | S113: =IF(AH113>0,1/(((18+1)/(AH113/1000+Q113))^4.79*10^($E$39/R113)/10^($E$39/$E$40)*Q113^4.33),0) -> 0 | T113: 3 | U113: =0.4+(0.081*(AJ113/1000+T113)^3.23)/($E$36+1)^5.19 -> 0.4021129797 | V113: =IF(AJ113>0,1/(((18+1)/(AJ113/1000+T113))^4.79*10^($E$39/U113)/10^($E$39/$E$40)*T113^4.33),0) -> 0 | W113: =J113+M113 -> 1.113894767 | Y113: 6 | Z113: G2 | AA113: 5 Axle Grain | AC113: 12000 | AD113: 34000 | AE113: Dual, Tandem Axle | AF113: 34000 | AG113: Dual, Tandem Axle | AL113: 12000 | AM113: 23000 | AN113: 23000 | AQ113: 12000 | AR113: 12000 | AS113: 12000 | AZ113: 5Ax-GrainTruck.jpg | BF113: 0.6408966119 | BG113: 2.391314664 | BH113: 2.391314664 | BI113: 0.4021129797 | BJ113: 0.4021129797 | BK113: 0.1890045825 | BL113: 0.1705194003 | BM113: 0.1705194003 | BN113: 0 | BO113: 0 | BP113: 0.530043383 | BQ113: 0.6408966119 | BR113: 0.7060463604 | BS113: 0.7060463604 | BT113: 0.4021129797 | BU113: 0.4021129797 | BV113: 0.1890045825 | BW113: 0.01301282718 | BX113: 0.01301282718 | BY113: 0 | BZ113: 0 | CA113: 0.2150302368
G114: G3 - 3 Axle Grain | H114: 8 | I114: =0.4+(0.081*(AC114/1000+1)^3.23)/(($E$36+1)^5.19*1^3.23) -> 1.220668558 | J114: =1/(((18+1)/(AC114/1000+1))^4.79*10^($E$39/I114)/10^($E$39/$E$40)*1^4.33) -> 1 | K114: 2 | L114: =0.4+(0.081*(AD114/1000+K114)^3.23)/($E$36+1)^5.19 -> 14.67254629 | M114: =IF(AD114>0,1/(((18+1)/(AD114/1000+K114))^4.79*10^($E$39/L114)/10^($E$39/$E$40)*K114^4.33),0) -> 2.945232065 | N114: 3 | O114: =0.4+(0.081*(AF114/1000+N114)^3.23)/($E$36+1)^5.19 -> 0.4021129797 | P114: =IF(AF114>0,1/(((18+1)/(AF114/1000+N114))^4.79*10^($E$39/O114)/10^($E$39/$E$40)*N114^4.33),0) -> 0 | Q114: 3 | R114: =0.4+(0.081*(AH114/1000+Q114)^3.23)/($E$36+1)^5.19 -> 0.4021129797 | S114: =IF(AH114>0,1/(((18+1)/(AH114/1000+Q114))^4.79*10^($E$39/R114)/10^($E$39/$E$40)*Q114^4.33),0) -> 0 | T114: 3 | U114: =0.4+(0.081*(AJ114/1000+T114)^3.23)/($E$36+1)^5.19 -> 0.4021129797 | V114: =IF(AJ114>0,1/(((18+1)/(AJ114/1000+T114))^4.79*10^($E$39/U114)/10^($E$39/$E$40)*T114^4.33),0) -> 0 | W114: =J114+M114 -> 3.945232065 | Y114: 7 | Z114: G3 | AA114: 3 Axle Grain | AC114: 18000 | AD114: 44000 | AE114: Dual, Tandem Axle | AL114: 14000 | AM114: 29500 | AQ114: 14000 | AR114: 15000 | AZ114: 3Ax-GrainTruck.jpg | BF114: 0.7824445097 | BG114: 4.60084592 | BH114: 0.4021129797 | BI114: 0.4021129797 | BJ114: 0.4021129797 | BK114: 0.3540426402 | BL114: 0.4950930015 | BM114: 0 | BN114: 0 | BO114: 0 | BP114: 0.8491356417 | BQ114: 0.7824445097 | BR114: 0.9729855635 | BS114: 0.4021129797 | BT114: 0.4021129797 | BU114: 0.4021129797 | BV114: 0.3540426402 | BW114: 0.03045850556 | BX114: 0 | BY114: 0 | BZ114: 0 | CA114: 0.3845011458
G115: G4 - 3+ Axle Sugar Beet | H115: 8 | I115: =0.4+(0.081*(AC115/1000+1)^3.23)/(($E$36+1)^5.19*1^3.23) -> 0.8710870956 | J115: =1/(((18+1)/(AC115/1000+1))^4.79*10^($E$39/I115)/10^($E$39/$E$40)*1^4.33) -> 0.4696192795 | K115: 3 | L115: =0.4+(0.081*(AD115/1000+K115)^3.23)/($E$36+1)^5.19 -> 11.87880757 | M115: =IF(AD115>0,1/(((18+1)/(AD115/1000+K115))^4.79*10^($E$39/L115)/10^($E$39/$E$40)*K115^4.33),0) -> 0.3696356892 | N115: 3 | O115: =0.4+(0.081*(AF115/1000+N115)^3.23)/($E$36+1)^5.19 -> 0.4021129797 | P115: =IF(AF115>0,1/(((18+1)/(AF115/1000+N115))^4.79*10^($E$39/O115)/10^($E$39/$E$40)*N115^4.33),0) -> 0 | Q115: 3 | R115: =0.4+(0.081*(AH115/1000+Q115)^3.23)/($E$36+1)^5.19 -> 0.4021129797 | S115: =IF(AH115>0,1/(((18+1)/(AH115/1000+Q115))^4.79*10^($E$39/R115)/10^($E$39/$E$40)*Q115^4.33),0) -> 0 | T115: 3 | U115: =0.4+(0.081*(AJ115/1000+T115)^3.23)/($E$36+1)^5.19 -> 0.4021129797 | V115: =IF(AJ115>0,1/(((18+1)/(AJ115/1000+T115))^4.79*10^($E$39/U115)/10^($E$39/$E$40)*T115^4.33),0) -> 0 | W115: =J115+M115 -> 0.8392549687 | Y115: 8 | Z115: G4 | AA115: 3+ Axle Sugar Beet | AC115: 15000 | AD115: 40000 | AE115: Tridem | AL115: 10000 | AM115: 25000 | AQ115: 10000 | AR115: 10000 | AZ115: 3+Ax-SugarBeet.jpg | BF115: 0.5404403933 | BG115: 3.271534941 | BH115: 0.4021129797 | BI115: 0.4021129797 | BJ115: 0.4021129797 | BK115: 0.09010525278 | BL115: 0.04955025989 | BM115: 0 | BN115: 0 | BO115: 0 | BP115: 0.1396555127 | BQ115: 0.5404403933 | BR115: 0.6408966119 | BS115: 0.4021129797 | BT115: 0.4021129797 | BU115: 0.4021129797 | BV115: 0.09010525278 | BW115: 0.001623817812 | BX115: 0 | BY115: 0 | BZ115: 0 | CA115: 0.09172907059
G116: H1 - Concrete Truck | H116: 6 | I116: =0.4+(0.081*(AC116/1000+1)^3.23)/(($E$36+1)^5.19*1^3.23) -> 0.8710870956 | J116: =1/(((18+1)/(AC116/1000+1))^4.79*10^($E$39/I116)/10^($E$39/$E$40)*1^4.33) -> 0.4696192795 | K116: 2 | L116: =0.4+(0.081*(AD116/1000+K116)^3.23)/($E$36+1)^5.19 -> 8.100070136 | M116: =IF(AD116>0,1/(((18+1)/(AD116/1000+K116))^4.79*10^($E$39/L116)/10^($E$39/$E$40)*K116^4.33),0) -> 1.192865519 | N116: 3 | O116: =0.4+(0.081*(AF116/1000+N116)^3.23)/($E$36+1)^5.19 -> 0.4021129797 | P116: =IF(AF116>0,1/(((18+1)/(AF116/1000+N116))^4.79*10^($E$39/O116)/10^($E$39/$E$40)*N116^4.33),0) -> 0 | Q116: 3 | R116: =0.4+(0.081*(AH116/1000+Q116)^3.23)/($E$36+1)^5.19 -> 0.4021129797 | S116: =IF(AH116>0,1/(((18+1)/(AH116/1000+Q116))^4.79*10^($E$39/R116)/10^($E$39/$E$40)*Q116^4.33),0) -> 0 | T116: 3 | U116: =0.4+(0.081*(AJ116/1000+T116)^3.23)/($E$36+1)^5.19 -> 0.4021129797 | V116: =IF(AJ116>0,1/(((18+1)/(AJ116/1000+T116))^4.79*10^($E$39/U116)/10^($E$39/$E$40)*T116^4.33),0) -> 0 | W116: =J116+M116 -> 1.662484798 | Y116: 9 | Z116: H1 | AA116: Concrete Truck | AC116: 15000 | AD116: 36000 | AE116: Dual, Tandem Axle | AL116: 12000 | AM116: 24000 | AQ116: 12000 | AR116: 12000 | AZ116: 2+Ax-ConcreteTruck.jpg | BF116: 0.6408966119 | BG116: 2.660255724 | BH116: 0.4021129797 | BI116: 0.4021129797 | BJ116: 0.4021129797 | BK116: 0.1890045825 | BL116: 0.203987423 | BM116: 0 | BN116: 0 | BO116: 0 | BP116: 0.3929920055 | BQ116: 0.6408966119 | BR116: 0.7060463604 | BS116: 0.4021129797 | BT116: 0.4021129797 | BU116: 0.4021129797 | BV116: 0.1890045825 | BW116: 0.01301282718 | BX116: 0 | BY116: 0 | BZ116: 0 | CA116: 0.2020174096
G117: H2 - Tanker Truck | H117: 9 | I117: 0.6408966119 | J117: 0.1890045825 | K117: 2 | L117: 6.866223943 | M117: 0.9248901841 | N117: 2 | O117: 6.866223943 | P117: 0.9248901841 | Q117: 3 | R117: 0.4021129797 | S117: 0 | T117: 3 | U117: 0.4021129797 | V117: 0 | W117: 1.113894767 | Y117: 10 | Z117: H2 | AA117: Tanker Truck | AC117: 12000 | AD117: 34000 | AE117: Dual, Tandem Axle | AF117: 34000 | AG117: Dual, Tandem Axle | AL117: 12000 | AM117: 21000 | AN117: 21000 | AQ117: 12000 | AR117: 8000 | AS117: 8000 | AZ117: 5Ax-Tanker.jpg | BF117: 0.6408966119 | BG117: 1.92115887 | BH117: 1.92115887 | BI117: 0.4021129797 | BJ117: 0.4021129797 | BK117: 0.1890045825 | BL117: 0.116793761 | BM117: 0.116793761 | BN117: 0 | BO117: 0 | BP117: 0.4225921045 | BQ117: 0.6408966119 | BR117: 0.5032270851 | BS117: 0.5032270851 | BT117: 0.4021129797 | BU117: 0.4021129797 | BV117: 0.1890045825 | BW117: 0.002918698392 | BX117: 0.002918698392 | BY117: 0 | BZ117: 0 | CA117: 0.1948419792
G118: H3 - 2 Axle Dump | H118: 5 | I118: 0.6408966119 | J118: 0.1890045825 | K118: 1 | L118: 1.92115887 | M118: 2.348981115 | N118: 3 | O118: 0.4021129797 | P118: 0 | Q118: 3 | R118: 0.4021129797 | S118: 0 | T118: 3 | U118: 0.4021129797 | V118: 0 | W118: 2.537985697 | Y118: 11 | Z118: H3 | AA118: 2 Axle Dump | AC118: 12000 | AD118: 22000 | AE118: Dual, Single Axle | AL118: 12000 | AM118: 16000 | AQ118: 12000 | AR118: 10000 | AZ118: 2Ax-DumpTruck.jpg | BF118: 0.6408966119 | BG118: 0.9729855635 | BH118: 0.4021129797 | BI118: 0.4021129797 | BJ118: 0.4021129797 | BK118: 0.1890045825 | BL118: 0.6125879818 | BM118: 0 | BN118: 0 | BO118: 0 | BP118: 0.8015925642 | BQ118: 0.6408966119 | BR118: 0.5404403933 | BS118: 0.4021129797 | BT118: 0.4021129797 | BU118: 0.4021129797 | BV118: 0.1890045825 | BW118: 0.09010525278 | BX118: 0 | BY118: 0 | BZ118: 0 | CA118: 0.2791098352
G119: H4 - 3 Axle Dump | H119: 6 | I119: 1.220668558 | J119: 1 | K119: 2 | L119: 14.67254629 | M119: 2.945232065 | N119: 3 | O119: 0.4021129797 | P119: 0 | Q119: 3 | R119: 0.4021129797 | S119: 0 | T119: 3 | U119: 0.4021129797 | V119: 0 | W119: 3.945232065 | Y119: 12 | Z119: H4 | AA119: 3 Axle Dump | AC119: 18000 | AD119: 44000 | AE119: Dual, Tandem Axle | AL119: 12000 | AM119: 30000 | AQ119: 12000 | AR119: 16000 | AZ119: 3Ax-DumpTruck.jpg | BF119: 0.6408966119 | BG119: 4.820059279 | BH119: 0.4021129797 | BI119: 0.4021129797 | BJ119: 0.4021129797 | BK119: 0.1890045825 | BL119: 0.5328051913 | BM119: 0 | BN119: 0 | BO119: 0 | BP119: 0.7218097737 | BQ119: 0.6408966119 | BR119: 1.089166019 | BS119: 0.4021129797 | BT119: 0.4021129797 | BU119: 0.4021129797 | BV119: 0.1890045825 | BW119: 0.0391618207 | BX119: 0 | BY119: 0 | BZ119: 0 | CA119: 0.2281664032
G120: H5 - 6 Axle Dump | H120: 10 | I120: 0.6408966119 | J120: 0.1890045825 | K120: 2 | L120: 2.660255724 | M120: 0.203987423 | N120: 3 | O120: 15.69923604 | P120: 0.5636203589 | Q120: 3 | R120: 0.4021129797 | S120: 0 | T120: 3 | U120: 0.4021129797 | V120: 0 | W120: 0.3929920055 | Y120: 13 | Z120: H5 | AA120: 6 Axle Dump | AC120: 12000 | AD120: 24000 | AE120: Dual, Tandem Axle | AF120: 44000 | AG120: Tridem | AL120: 10000 | AM120: 18000 | AN120: 28000 | AQ120: 10000 | AR120: 12000 | AS120: 12000 | AZ120: 6Ax-DumpTruck.jpg | BF120: 0.5404403933 | BG120: 1.368546665 | BH120: 4.389256258 | BI120: 0.4021129797 | BJ120: 0.4021129797 | BK120: 0.09010525278 | BL120: 0.06242677393 | BM120: 0.07940694614 | BN120: 0 | BO120: 0 | BP120: 0.2319389728 | BQ120: 0.5404403933 | BR120: 0.7060463604 | BS120: 0.7824445097 | BT120: 0.4021129797 | BU120: 0.4021129797 | BV120: 0.09010525278 | BW120: 0.01301282718 | BX120: 0.003041729136 | BY120: 0 | BZ120: 0 | CA120: 0.1061598091
G121: H6 - 6 Axle Aggregate | H121: 10 | I121: 0.6408966119 | J121: 0.1890045825 | K121: 2 | L121: 2.660255724 | M121: 0.203987423 | N121: 3 | O121: 15.69923604 | P121: 0.5636203589 | Q121: 3 | R121: 0.4021129797 | S121: 0 | T121: 3 | U121: 0.4021129797 | V121: 0 | W121: 0.3929920055 | Y121: 14 | Z121: H6 | AA121: 6 Axle Aggregate | AC121: 12000 | AD121: 24000 | AE121: Dual, Tandem Axle | AF121: 44000 | AG121: Tridem | AL121: 12000 | AM121: 18000 | AN121: 28000 | AQ121: 12000 | AR121: 12000 | AS121: 12000 | AZ121: 6Ax-AggregateTruck.jpg | BF121: 0.6408966119 | BG121: 1.368546665 | BH121: 4.389256258 | BI121: 0.4021129797 | BJ121: 0.4021129797 | BK121: 0.1890045825 | BL121: 0.06242677393 | BM121: 0.07940694614 | BN121: 0 | BO121: 0 | BP121: 0.3308383025 | BQ121: 0.6408966119 | BR121: 0.7060463604 | BS121: 0.7824445097 | BT121: 0.4021129797 | BU121: 0.4021129797 | BV121: 0.1890045825 | BW121: 0.01301282718 | BX121: 0.003041729136 | BY121: 0 | BZ121: 0 | CA121: 0.2050591388
G122: H7 - 7 Axle Aggregate | H122: 10 | I122: =0.4+(0.081*(AC122/1000+1)^3.23)/(($E$36+1)^5.19*1^3.23) -> 0.6408966119 | J122: =1/(((18+1)/(AC122/1000+1))^4.79*10^($E$39/I122)/10^($E$39/$E$40)*1^4.33) -> 0.1890045825 | K122: 3 | L122: =0.4+(0.081*(AD122/1000+K122)^3.23)/($E$36+1)^5.19 -> 15.69923604 | M122: =IF(AD122>0,1/(((18+1)/(AD122/1000+K122))^4.79*10^($E$39/L122)/10^($E$39/$E$40)*K122^4.33),0) -> 0.5636203589 | N122: 3 | O122: =0.4+(0.081*(AF122/1000+N122)^3.23)/($E$36+1)^5.19 -> 15.69923604 | P122: =IF(AF122>0,1/(((18+1)/(AF122/1000+N122))^4.79*10^($E$39/O122)/10^($E$39/$E$40)*N122^4.33),0) -> 0.5636203589 | Q122: 3 | R122: =0.4+(0.081*(AH122/1000+Q122)^3.23)/($E$36+1)^5.19 -> 0.4021129797 | S122: =IF(AH122>0,1/(((18+1)/(AH122/1000+Q122))^4.79*10^($E$39/R122)/10^($E$39/$E$40)*Q122^4.33),0) -> 0 | T122: 3 | U122: =0.4+(0.081*(AJ122/1000+T122)^3.23)/($E$36+1)^5.19 -> 0.4021129797 | V122: =IF(AJ122>0,1/(((18+1)/(AJ122/1000+T122))^4.79*10^($E$39/U122)/10^($E$39/$E$40)*T122^4.33),0) -> 0 | W122: =J122+M122 -> 0.7526249413 | Y122: 14 | Z122: H7 | AA122: 7 Axle Aggregate | AC122: 12000 | AD122: 44000 | AE122: Tridem | AF122: 44000 | AG122: Tridem | AL122: 12000 | AM122: 18000 | AN122: 28000 | AQ122: 12000 | AR122: 12000 | AS122: 12000 | AZ122: 7Ax-AggregateTruck.jpg | BF122: 0.6408966119 | BG122: 1.533866661 | BH122: 4.389256258 | BI122: 0.4021129797 | BJ122: 0.4021129797 | BK122: 0.1890045825 | BL122: 0.01340873869 | BM122: 0.07940694614 | BN122: 0 | BO122: 0 | BP122: 0.2818202673 | BQ122: 0.6408966119 | BR122: 0.7824445097 | BS122: 0.7824445097 | BT122: 0.4021129797 | BU122: 0.4021129797 | BV122: 0.1890045825 | BW122: 0.003041729136 | BX122: 0.003041729136 | BY122: 0 | BZ122: 0 | CA122: 0.1950880407
G123: W1 - Waste - Front Load | H123: 7 | I123: =0.4+(0.081*(AC123/1000+1)^3.23)/(($E$36+1)^5.19*1^3.23) -> 1.533866661 | J123: =1/(((18+1)/(AC123/1000+1))^4.79*10^($E$39/I123)/10^($E$39/$E$40)*1^4.33) -> 1.560712686 | K123: =IF(ISERROR(SEARCH("Tandem",AE123)),IF(ISERROR(SEARCH("Single",AE123)),3,1),2) -> 2 | L123: =0.4+(0.081*(AD123/1000+K123)^3.23)/($E$36+1)^5.19 -> 16.77581263 | M123: =IF(AD123>0,1/(((18+1)/(AD123/1000+K123))^4.79*10^($E$39/L123)/10^($E$39/$E$40)*K123^4.33),0) -> 3.604915122 | N123: 3 | O123: =0.4+(0.081*(AF123/1000+N123)^3.23)/($E$36+1)^5.19 -> 0.4021129797 | P123: =IF(AF123>0,1/(((18+1)/(AF123/1000+N123))^4.79*10^($E$39/O123)/10^($E$39/$E$40)*N123^4.33),0) -> 0 | Q123: 3 | R123: =0.4+(0.081*(AH123/1000+Q123)^3.23)/($E$36+1)^5.19 -> 0.4021129797 | S123: =IF(AH123>0,1/(((18+1)/(AH123/1000+Q123))^4.79*10^($E$39/R123)/10^($E$39/$E$40)*Q123^4.33),0) -> 0 | T123: 3 | U123: =0.4+(0.081*(AJ123/1000+T123)^3.23)/($E$36+1)^5.19 -> 0.4021129797 | V123: =IF(AJ123>0,1/(((18+1)/(AJ123/1000+T123))^4.79*10^($E$39/U123)/10^($E$39/$E$40)*T123^4.33),0) -> 0 | W123: =J123+M123+P123+S123+U123 -> 5.567740787 | Y123: 15 | Z123: W1 | AA123: Waste - Front Load | AC123: 20000 | AD123: 46000 | AE123: Dual, Tandem Axle | AL123: 16000 | AM123: 33000 | AQ123: 16000 | AR123: 20000 | AV123: 425/65R22.5 | AW123: 11R22.5 | AX123: 40 | AZ123: FrontLoader-2.jpg | BF123: 0.9729855635 | BG123: 6.303824611 | BH123: 0.4021129797 | BI123: 0.4021129797 | BJ123: 0.4021129797 | BK123: 0.6125879818 | BL123: 0.8102942757 | BM123: 0 | BN123: 0 | BO123: 0 | BP123: 1.422882257 | BQ123: 0.9729855635 | BR123: 1.717707212 | BS123: 0.4021129797 | BT123: 0.4021129797 | BU123: 0.4021129797 | BV123: 0.6125879818 | BW123: 0.09559416124 | BX123: 0 | BY123: 0 | BZ123: 0 | CA123: 0.708182143
G124: =Z124 & " - " & AA124 -> W2 - Waste - Front Load | H124: 7 | I124: =0.4+(0.081*(AC124/1000+1)^3.23)/(($E$36+1)^5.19*1^3.23) -> 1.220668558 | J124: 1 | K124: =IF(ISERROR(SEARCH("Tandem",AE124)),IF(ISERROR(SEARCH("Single",AE124)),3,1),2) -> 2 | L124: 16.77581263 | M124: 3.604915122 | N124: =IF(ISERROR(SEARCH("Tandem",AG124)),IF(ISERROR(SEARCH("Single",AG124)),3,1),2) -> 3 | O124: 0.4021129797 | P124: 0 | Q124: =IF(ISERROR(SEARCH("Tandem",AI124)),IF(ISERROR(SEARCH("Single",AI124)),3,1),2) -> 3 | R124: 0.4021129797 | S124: 0 | T124: =IF(ISERROR(SEARCH("Tandem",AK124)),IF(ISERROR(SEARCH("Single",AK124)),3,1),2) -> 3 | U124: 0.4021129797 | V124: 0 | W124: =J124+M124 -> 4.604915122 | Y124: 16 | Z124: W2 | AA124: Waste - Front Load | AC124: 18000 | AD124: 46000 | AE124: Dual Tandem with Tag Axle | AL124: 15000 | AM124: 34500 | AQ124: 15000 | AR124: 23000 | AV124: 385/65R22.5 | AW124: 12R22.5 | AX124: 40 | AZ124: FrontLoader-3.jpg | BF124: =0.4+(0.081*(AL124/1000+1)^3.23)/(($E$36+1)^5.19*1^3.23) -> 0.8710870956 | BG124: =0.4+(0.081*(AM124/1000+K124)^3.23)/($E$36+1)^5.19 -> 7.160823777 | BH124: =0.4+(0.081*(AN124/1000+N124)^3.23)/($E$36+1)^5.19 -> 0.4021129797 | BI124: =0.4+(0.081*(AO124/1000+Q124)^3.23)/($E$36+1)^5.19 -> 0.4021129797 | BJ124: =0.4+(0.081*(AP124/1000+T124)^3.23)/($E$36+1)^5.19 -> 0.4021129797 | BK124: =1/(((18+1)/(AL124/1000+1))^4.79*10^($E$39/BF124)/10^($E$39/$E$40)*1^4.33) -> 0.4696192795 | BL124: =IF(AM124>0,1/(((18+1)/(AM124/1000+K124))^4.79*10^($E$39/BG124)/10^($E$39/$E$40)*K124^4.33),0) -> 0.9868499018 | BM124: =IF(AN124>0,1/(((18+1)/(AN124/1000+N124))^4.79*10^($E$39/BH124)/10^($E$39/$E$40)*N124^4.33),0) -> 0 | BN124: =IF(AO124>0,1/(((18+1)/(AO124/1000+Q124))^4.79*10^($E$39/BI124)/10^($E$39/$E$40)*Q124^4.33),0) -> 0 | BO124: =IF(AP124>0,1/(((18+1)/(AP124/1000+T124))^4.79*10^($E$39/BJ124)/10^($E$39/$E$40)*T124^4.33),0) -> 0 | BP124: =SUM(BK124:BO124) -> 1.456469181 | BQ124: =0.4+(0.081*(AQ124/1000+1)^3.23)/(($E$36+1)^5.19*1^3.23) -> 0.8710870956 | BR124: =0.4+(0.081*(AR124/1000+K124)^3.23)/($E$36+1)^5.19 -> 2.391314664 | BS124: =0.4+(0.081*(AS124/1000+N124)^3.23)/($E$36+1)^5.19 -> 0.4021129797 | BT124: =0.4+(0.081*(AT124/1000+Q124)^3.23)/($E$36+1)^5.19 -> 0.4021129797 | BU124: =0.4+(0.081*(AU124/1000+T124)^3.23)/($E$36+1)^5.19 -> 0.4021129797 | BV124: =1/(((18+1)/(AQ124/1000+1))^4.79*10^($E$39/BQ124)/10^($E$39/$E$40)*1^4.33) -> 0.4696192795 | BW124: =IF(AR124>0,1/(((18+1)/(AR124/1000+K124))^4.79*10^($E$39/BR124)/10^($E$39/$E$40)*K124^4.33),0) -> 0.1705194003 | BX124: =IF(AS124>0,1/(((18+1)/(AS124/1000+N124))^4.79*10^($E$39/BS124)/10^($E$39/$E$40)*N124^4.33),0) -> 0 | BY124: =IF(AT124>0,1/(((18+1)/(AT124/1000+Q124))^4.79*10^($E$39/BT124)/10^($E$39/$E$40)*Q124^4.33),0) -> 0 | BZ124: =IF(AU124>0,1/(((18+1)/(AU124/1000+T124))^4.79*10^($E$39/BU124)/10^($E$39/$E$40)*T124^4.33),0) -> 0 | CA124: =SUM(BV124:BZ124) -> 0.6401386798
G125: W3 - Waste - Rear Load | H125: 6 | I125: 0.6408966119 | J125: 0.1890045825 | K125: 1 | L125: 1.220668558 | M125: 1 | N125: 3 | O125: 0.4021129797 | P125: 0 | Q125: 3 | R125: 0.4021129797 | S125: 0 | T125: 3 | U125: 0.4021129797 | V125: 0 | W125: 1.189004582 | Y125: 17 | Z125: W3 | AA125: Waste - Rear Load | AC125: 12000 | AD125: 18000 | AE125: Dual, Single Axle | AL125: 12000 | AM125: 14000 | AQ125: 12000 | AR125: 10000 | AV125: 11R22.5 | AW125: 11R22.5 | AX125: 11 | AZ125: 2Ax-GarbageTruck.jpg | BF125: 0.6408966119 | BG125: 0.7824445097 | BH125: 0.4021129797 | BI125: 0.4021129797 | BJ125: 0.4021129797 | BK125: 0.1890045825 | BL125: 0.3540426402 | BM125: 0 | BN125: 0 | BO125: 0 | BP125: 0.5430472227 | BQ125: 0.6408966119 | BR125: 0.5404403933 | BS125: 0.4021129797 | BT125: 0.4021129797 | BU125: 0.4021129797 | BV125: 0.1890045825 | BW125: 0.09010525278 | BX125: 0 | BY125: 0 | BZ125: 0 | CA125: 0.2791098352
G126: W4 - Waste - Rear Load | H126: 6 | I126: 1.220668558 | J126: 1 | K126: 2 | L126: 11.03870758 | M126: 1.913678921 | N126: 3 | O126: 0.4021129797 | P126: 0 | Q126: 3 | R126: 0.4021129797 | S126: 0 | T126: 3 | U126: 0.4021129797 | V126: 0 | W126: 2.913678921 | Y126: 18 | Z126: W4 | AA126: Waste - Rear Load | AC126: 18000 | AD126: 40000 | AE126: Dual, Tandem Axle | AL126: 16000 | AM126: 31000 | AQ126: 16000 | AR126: 22000 | AV126: 315/80R22.5 | AW126: 315/80R22.5 | AX126: 25 | AZ126: RearLoader-2.jpg | BF126: 0.9729855635 | BG126: 5.281954075 | BH126: 0.4021129797 | BI126: 0.4021129797 | BJ126: 0.4021129797 | BK126: 0.6125879818 | BL126: 0.6151318493 | BM126: 0 | BN126: 0 | BO126: 0 | BP126: 1.227719831 | BQ126: 0.9729855635 | BR126: 2.145323654 | BS126: 0.4021129797 | BT126: 0.4021129797 | BU126: 0.4021129797 | BV126: 0.6125879818 | BW126: 0.1416177657 | BX126: 0 | BY126: 0 | BZ126: 0 | CA126: 0.7542057475
G127: W5 - Waste - Side Load | H127: 6 | I127: 1.220668558 | J127: 1 | K127: 2 | L127: 14.67254629 | M127: 2.945232065 | N127: 3 | O127: 0.4021129797 | P127: 0 | Q127: 3 | R127: 0.4021129797 | S127: 0 | T127: 3 | U127: 0.4021129797 | V127: 0 | W127: 3.945232065 | Y127: 19 | Z127: W5 | AA127: Waste - Side Load | AC127: 18000 | AD127: 44000 | AE127: Dual, Tandem Axle | AL127: 16000 | AM127: 33500 | AQ127: 16000 | AR127: 23000 | AV127: 315/80R22.5 | AW127: 11R22.5 | AX127: 27 | AZ127: SideLoader-2.jpg | BF127: 0.9729855635 | BG127: 6.580608634 | BH127: 0.4021129797 | BI127: 0.4021129797 | BJ127: 0.4021129797 | BK127: 0.6125879818 | BL127: 0.866078414 | BM127: 0 | BN127: 0 | BO127: 0 | BP127: 1.478666396 | BQ127: 0.9729855635 | BR127: 2.391314664 | BS127: 0.4021129797 | BT127: 0.4021129797 | BU127: 0.4021129797 | BV127: 0.6125879818 | BW127: 0.1705194003 | BX127: 0 | BY127: 0 | BZ127: 0 | CA127: 0.783107382
G128: W6 - Recycle | H128: 6 | I128: 0.6408966119 | J128: 0.1890045825 | K128: 1 | L128: 1.717707212 | M128: 1.922610227 | N128: 3 | O128: 0.4021129797 | P128: 0 | Q128: 3 | R128: 0.4021129797 | S128: 0 | T128: 3 | U128: 0.4021129797 | V128: 0 | W128: 2.11161481 | Y128: 20 | Z128: W6 | AA128: Recycle | AC128: 12000 | AD128: 21000 | AE128: Dual, Single Axle | AL128: 12000 | AM128: 16500 | AQ128: 12000 | AR128: 12000 | AV128: 11R22.5 | AW128: 11R22.5 | AZ128: Recycle-1.jpg | BF128: 0.6408966119 | BG128: 1.029225857 | BH128: 0.4021129797 | BI128: 0.4021129797 | BJ128: 0.4021129797 | BK128: 0.1890045825 | BL128: 0.6957855766 | BM128: 0 | BN128: 0 | BO128: 0 | BP128: 0.8847901591 | BQ128: 0.6408966119 | BR128: 0.6408966119 | BS128: 0.4021129797 | BT128: 0.4021129797 | BU128: 0.4021129797 | BV128: 0.1890045825 | BW128: 0.1890045825 | BX128: 0 | BY128: 0 | BZ128: 0 | CA128: 0.3780091649
G129: W7 - Recycle | H129: 6 | I129: 0.7060463604 | J129: 0.2617167648 | K129: 1 | L129: 2.391314664 | M129: 3.429522668 | N129: 3 | O129: 0.4021129797 | P129: 0 | Q129: 3 | R129: 0.4021129797 | S129: 0 | T129: 3 | U129: 0.4021129797 | V129: 0 | W129: 3.691239433 | Y129: 21 | Z129: W7 | AA129: Recycle | AC129: 13000 | AD129: 24000 | AE129: Dual, Single Axle | AL129: 12000 | AM129: 18000 | AQ129: 12000 | AR129: 12000 | AV129: 11R22.5 | AW129: 11R22.5 | AZ129: Recycle-1a.jpg | BF129: 0.6408966119 | BG129: 1.220668558 | BH129: 0.4021129797 | BI129: 0.4021129797 | BJ129: 0.4021129797 | BK129: 0.1890045825 | BL129: 1 | BM129: 0 | BN129: 0 | BO129: 0 | BP129: 1.189004582 | BQ129: 0.6408966119 | BR129: 0.6408966119 | BS129: 0.4021129797 | BT129: 0.4021129797 | BU129: 0.4021129797 | BV129: 0.1890045825 | BW129: 0.1890045825 | BX129: 0 | BY129: 0 | BZ129: 0 | CA129: 0.3780091649
G130: W8 - Recycle | H130: 6 | I130: 0.6408966119 | J130: 0.1890045825 | K130: 1 | L130: 1.533866661 | M130: 1.560712686 | N130: 3 | O130: 0.4021129797 | P130: 0 | Q130: 3 | R130: 0.4021129797 | S130: 0 | T130: 3 | U130: 0.4021129797 | V130: 0 | W130: 1.749717268 | Y130: 22 | Z130: W8 | AA130: Recycle | AC130: 12000 | AD130: 20000 | AE130: Dual, Single Axle | AL130: 10000 | AM130: 15000 | AQ130: 10000 | AR130: 10000 | AV130: 11R22.5 | AW130: 11R22.5 | AZ130: Recycle-1b.jpg | BF130: 0.5404403933 | BG130: 0.8710870956 | BH130: 0.4021129797 | BI130: 0.4021129797 | BJ130: 0.4021129797 | BK130: 0.09010525278 | BL130: 0.4696192795 | BM130: 0 | BN130: 0 | BO130: 0 | BP130: 0.5597245323 | BQ130: 0.5404403933 | BR130: 0.5404403933 | BS130: 0.4021129797 | BT130: 0.4021129797 | BU130: 0.4021129797 | BV130: 0.09010525278 | BW130: 0.09010525278 | BX130: 0 | BY130: 0 | BZ130: 0 | CA130: 0.1802105056
I219: ESALs per truck | Y219: Number | Z219: Type | AA219: Truck type | AC219: Front Axle Wt | AD219: Rear Axle Wt | AE219: Rear Axle Type | AF219: Rear Axle Wt | AG219: Rear Axle Type | AH219: Rear Axle Wt | AI219: Rear Axle Type | AJ219: Rear Axle Wt | AK219: Rear Axle Type | AL219: Front Tire Type | AM219: Rear Tire Type | AN219: Capacity, cy | AP219: Picture File List
I220: Bx-Front | J220: ESAL-Front | K220: Rear Axle Type2 | L220: Bx-Rear2 | M220: ESAL-Rear2 | N220: Rear Axle Type3 | O220: Bx-Rear3 | P220: ESAL-Rear3 | Q220: Rear Axle Type4 | R220: Bx-Rear4 | S220: ESAL-Rear4 | T220: Rear Axle Type5 | U220: Bx-Rear5 | V220: ESAL-Rear5 | W220: Truck ESAL
Y222: Custom Trucks
Y223: NumCustomTypes | Z223: 2
G224: List | Y224: Number | Z224: Type | AA224: Truck type | AC224: Front Axle Wt | AD224: Rear Axle Wt2 | AE224: Rear Axle Typ2 | AF224: Rear Axle Wt3 | AG224: Rear Axle Typ3 | AH224: Rear Axle Wt4 | AI224: Rear Axle Typ4 | AJ224: Rear Axle Wt5 | AK224: Rear Axle Typ5 | AL224: Front Tire Type | AM224: Rear Tire Type | AN224: Capacity, cy | AP224: Picture File List
G225: =Z225 & " - " & AA225 -> C0 - Create New Vehicle | I225: =0.4+(0.081*(AC225/1000+1)^3.23)/(($E$36+1)^5.19*1^3.23) -> 0.401172573 | J225: =IF(AC225>0,1/(((18+1)/(AC225/1000+1))^4.79*10^($E$39/I225)/10^($E$39/$E$40)*1^4.33),0) -> 8.506347017e-05 | K225: =IF(ISERROR(SEARCH("Tandem",AE225)),IF(ISERROR(SEARCH("Single",AE225)),3,1),2) -> 1 | L225: =0.4+(0.081*(AD225/1000+K225)^3.23)/($E$36+1)^5.19 -> 0.4078283473 | M225: =IF(AD225>0,1/(((18+1)/(AD225/1000+K225))^4.79*10^($E$39/L225)/10^($E$39/$E$40)*K225^4.33),0) -> 0.00140890009 | N225: =IF(ISERROR(SEARCH("Tandem",AG225)),IF(ISERROR(SEARCH("Single",AG225)),3,1),2) -> 3 | O225: =0.4+(0.081*(AF225/1000+N225)^3.23)/($E$36+1)^5.19 -> 0.4021129797 | P225: =IF(AF225>0,1/(((18+1)/(AF225/1000+N225))^4.79*10^($E$39/O225)/10^($E$39/$E$40)*N225^4.33),0) -> 0 | Q225: =IF(ISERROR(SEARCH("Tandem",AI225)),IF(ISERROR(SEARCH("Single",AI225)),3,1),2) -> 3 | R225: =0.4+(0.081*(AH225/1000+Q225)^3.23)/($E$36+1)^5.19 -> 0.4021129797 | S225: =IF(AH225>0,1/(((18+1)/(AH225/1000+Q225))^4.79*10^($E$39/R225)/10^($E$39/$E$40)*Q225^4.33),0) -> 0 | T225: =IF(ISERROR(SEARCH("Tandem",AK225)),IF(ISERROR(SEARCH("Single",AK225)),3,1),2) -> 3 | U225: =0.4+(0.081*(AJ225/1000+T225)^3.23)/($E$36+1)^5.19 -> 0.4021129797 | V225: =IF(AJ225>0,1/(((18+1)/(AJ225/1000+T225))^4.79*10^($E$39/U225)/10^($E$39/$E$40)*T225^4.33),0) -> 0 | W225: =J225+M225+P225+S225+V225 -> 0.001493963561 | Y225: 0 | Z225: C0 | AA225: Create New Vehicle | AC225: 1500 | AD225: 3500 | AE225: Dual, Single Axle | AL225: 225/65R17 | AM225: 225/65R17 | AN225: 4 | AP225: SampleTruck.jpg
G226: =Z226 & " - " & AA226 -> C1 - Front Load | I226: 1.533866661 | J226: 1.560712686 | K226: =IF(ISERROR(SEARCH("Tandem",AE226)),IF(ISERROR(SEARCH("Single",AE226)),3,1),2) -> 2 | L226: 16.77581263 | M226: 3.604915122 | N226: =IF(ISERROR(SEARCH("Tandem",AG226)),IF(ISERROR(SEARCH("Single",AG226)),3,1),2) -> 3 | O226: 0.4021129797 | P226: 0 | Q226: =IF(ISERROR(SEARCH("Tandem",AI226)),IF(ISERROR(SEARCH("Single",AI226)),3,1),2) -> 3 | R226: 0.4021129797 | S226: 0 | T226: =IF(ISERROR(SEARCH("Tandem",AK226)),IF(ISERROR(SEARCH("Single",AK226)),3,1),2) -> 3 | U226: 0.4021129797 | V226: 0 | W226: =J226+M226+P226+S226+V226 -> 5.165627808 | Y226: 1 | Z226: C1 | AA226: Front Load | AC226: 20000 | AD226: 46000 | AE226: Dual, Tandem Axle | AL226: 425/65R22.5 | AM226: 11R22.5 | AN226: 40 | AP226: FrontLoader-2.jpg
G227: =Z227 & " - " & AA227 -> C4 - Wind Turbine Truck | I227: =0.4+(0.081*(AC227/1000+1)^3.23)/(($E$36+1)^5.19*1^3.23) -> 1.220668558 | J227: =IF(AC227>0,1/(((18+1)/(AC227/1000+1))^4.79*10^($E$39/I227)/10^($E$39/$E$40)*1^4.33),0) -> 1 | K227: =IF(ISERROR(SEARCH("Tandem",AE227)),IF(ISERROR(SEARCH("Single",AE227)),3,1),2) -> 3 | L227: =0.4+(0.081*(AD227/1000+K227)^3.23)/($E$36+1)^5.19 -> 11.87880757 | M227: =IF(AD227>0,1/(((18+1)/(AD227/1000+K227))^4.79*10^($E$39/L227)/10^($E$39/$E$40)*K227^4.33),0) -> 0.3696356892 | N227: =IF(ISERROR(SEARCH("Tandem",AG227)),IF(ISERROR(SEARCH("Single",AG227)),3,1),2) -> 3 | O227: =0.4+(0.081*(AF227/1000+N227)^3.23)/($E$36+1)^5.19 -> 11.87880757 | P227: =IF(AF227>0,1/(((18+1)/(AF227/1000+N227))^4.79*10^($E$39/O227)/10^($E$39/$E$40)*N227^4.33),0) -> 0.3696356892 | Q227: =IF(ISERROR(SEARCH("Tandem",AI227)),IF(ISERROR(SEARCH("Single",AI227)),3,1),2) -> 3 | R227: =0.4+(0.081*(AH227/1000+Q227)^3.23)/($E$36+1)^5.19 -> 11.87880757 | S227: =IF(AH227>0,1/(((18+1)/(AH227/1000+Q227))^4.79*10^($E$39/R227)/10^($E$39/$E$40)*Q227^4.33),0) -> 0.3696356892 | T227: =IF(ISERROR(SEARCH("Tandem",AK227)),IF(ISERROR(SEARCH("Single",AK227)),3,1),2) -> 3 | U227: =0.4+(0.081*(AJ227/1000+T227)^3.23)/($E$36+1)^5.19 -> 11.87880757 | V227: =IF(AJ227>0,1/(((18+1)/(AJ227/1000+T227))^4.79*10^($E$39/U227)/10^($E$39/$E$40)*T227^4.33),0) -> 0.3696356892 | W227: =J227+M227+P227+S227+V227 -> 2.478542757 | Y227: 4 | Z227: C4 | AA227: Wind Turbine Truck | AC227: 18000 | AD227: 40000 | AE227: Tridem | AF227: 40000 | AG227: Tridem | AH227: 40000 | AI227: Tridem | AJ227: 40000 | AK227: Tridem
